Workbook

Sheet Read me - LAs
C8: JBA Strategic Flood Risk Assessment Site Screening Tool - v1.0
C10: This spreadsheet has been designed to assist local authorities with the selection of development sites for inclusion within their local plan.
C12: Note on calculations:
C13: Site boundaries have been screened against flood risk information to determine the proportion of the site at risk. The following flood risk information has been used in the assessment ● Flood Zones (from Environment Agency Flood Zones and results from detailed hydraulic models). Due to a lack of available information for the 3.3% AEP, Flood Zone 3 is represented by a 2% AEP event from the detailed hydraulic model. ● Surface Water (from the updated Flood Map for Surface Water) ● Environment Agency's Historic Flood Map ● Reservoirs (from the Environment Agency Reservoir Flood Maps)
C15: Additional information:
C16: The sites have also been considered against the following information to provide additional information to support decision making ● Canal centrelines - to determine if there is a canal within 100m of the site ● Environment Agency's Areas Benefitting from Defences dataset - to determine if the site benefits from formal flood defences ● Detailed River Network dataset - to determine if there is a watercourse with a catchment less than 3km2 flowing through or adjacent to a site, which would not have been included in the Environment Agency's Flood Zones ● Whether any additional modelling is required to determine Flood Zones for the Level 2 Strategic Flood Risk Assessment
C18: Note on Flood Zone and Surface Water percentages:
C19: The values quoted in the Level 1 Screening tab show the percentage of the site at flood risk from that particular Flood Zone / event, excluding the percentage of the site at flood risk at a higher zone. For example 50% of a site is in the Flood Zones. Taking each Flood Zone individually, 50% is in Flood Zone 2 but only 30% is in Flood Zone 3a and only 10% is in Flood Zone 3b. In the Level 1 Screening tab this will be displayed as 10% in Flood Zone 3b, 20% in Flood Zone 3a (as this excludes the 10% in Flood Zone 3b), 20% in Flood Zone 2 (as this excludes the 10% in Flood Zone 3b and 20% in Flood Zone 3a) and 50% in Flood Zone 1.
C21: Using the spreadsheet

Sheet Level 1 Screening
A1: Site Name | B1: Area (ha) | C1: Proportion of site shown to be at risk (%)
C2: Flood Map for Planning Flood Zones | F2: SFRA Flood Zones | G2: Fluvial and Tidal Flood Risk plus climate change | Q2: Environment Agency Risk of Flooding from Surface Water | T2: Environment Agency Risk of Flooding from Surface Water plus climate change | Z2: Environment Agency Reservoir Flood Extent | AB2: JBA Groundwater Flood Risk Dataset | AD2: Historic Flooding | AF2: Tidally influenced | AH2: Risk Category
C3: FZ1 | D3: FZ2 | E3: FZ3a | F3: FZ3b | G3: 3.3%AEP plus Central | H3: 3.3%AEP and 0.5% plus Higher Central | I3: 3.3%AEP and 0.5% plus Upper End | J3: 1%AEP plus Central | K3: 1%AEP and 0.5% plus Higher Central | L3: 1%AEP and 0.5% plus Upper End | M3: 0.1%AEP plus Central | N3: 0.1%AEP and 0.5% plus Higher Central | O3: 0.1%AEP and 0.5% plus Upper End | P3: Flood Zone 2 as proxy where no detailed model available | Q3: 30 year | R3: 100 year | S3: 1000 year | T3: 3.3%AEP+20% | U3: 3.3%AEP +40% | V3: 1%AEP+25% | W3: 1%AEP +45% | X3: 0.1%AEP+25% | Y3: 0.1%AEP +45% | Z3: Dry Day | AA3: Wet day | AB3: 0- 0.025m (grid code 4) | AC3: 0.025- 0.05m (grid code 3) | AD3: EA Historic Flood Map | AE3: West Sussex (within 50m of) | AF3: Tidally influenced Drainage Risk Zone (maximum risk) | AG3: Tidally influenced Groundwater Risk Zone (maximum risk) | AH3: Fluvial and Tidal Flood Risk plus climate change (Higher Central) | AI3: Environment Agency Risk of Flooding from Surface Water plus climate change | AJ3: Greatest risk
A4: 5 Brighton Road | B4: 0.503 | C4: 0.007086150153 | D4: 0.03128370223 | E4: 0.270023275 | F4: 0.6916068726 | G4: 0 | H4: 1.000500526 | I4: 1.000500526 | J4: 0 | K4: 1.000500526 | L4: 1.000500526 | M4: 0 | N4: 1.000500526 | O4: 1.000500526 | P4: 0 | Q4: 0 | R4: 0 | S4: 0 | T4: 0 | U4: 0 | V4: 0.002745626242 | W4: 0.002745626242 | X4: 0.0202493511 | Y4: 0.0829890569 | Z4: 0 | AA4: 0 | AB4: 0.007728578528 | AC4: 0 | AD4: 0 | AE4: 0 | AF4: 3 | AG4: 2 | AH4: =_xlfn.IFS(K4>0.005,"High",N4>0.005,"Medium",N4<=0.005,"Low") -> High | AI4: =_xlfn.IFS(W4>0.005,"High",Y4>0.005,"Medium", Y4<=0.005,"Low") -> Medium | AJ4: =IF(COUNTIF(AH4:AI4,"high"),"High",IF(COUNTIF(AH4:AI4,"medium"),"Medium","Low")) -> High
A5: 77A Brighton Road | B5: 0.054 | C5: -0.003386153874 | D5: 0.05841662576 | E5: 0.3074704568 | F5: 0.6374990713 | G5: 0 | H5: 1.003386154 | I5: 1.003386154 | J5: 0 | K5: 1.003386154 | L5: 1.003386154 | M5: 0 | N5: 1.003386154 | O5: 1.003386154 | P5: 0 | Q5: 0 | R5: 0 | S5: 0 | T5: 0 | U5: 0 | V5: 0 | W5: 0 | X5: 0.1535609855 | Y5: 0.1647519014 | Z5: 0 | AA5: 0 | AB5: 0 | AC5: 0 | AD5: 0 | AE5: 0 | AF5: 2 | AG5: 2 | AH5: =_xlfn.IFS(K5>0.005,"High",N5>0.005,"Medium",N5<=0.005,"Low") -> High | AI5: =_xlfn.IFS(W5>0.005,"High",Y5>0.005,"Medium", Y5<=0.005,"Low") -> Medium | AJ5: =IF(COUNTIF(AH5:AI5,"high"),"High",IF(COUNTIF(AH5:AI5,"medium"),"Medium","Low")) -> High
A6: B&Q and Halfords | B6: 1.299 | C6: 1 | D6: 0 | E6: 0 | F6: 0 | G6: 0 | H6: 0.2522367327 | I6: 0.5254062912 | J6: 0 | K6: 0.5716649228 | L6: 0.8581270349 | M6: 0 | N6: 0.7894632494 | O6: 0.9626410844 | P6: 0 | Q6: 0.003357766044 | R6: 0.00511532967 | S6: 0.03329206925 | T6: 0.002352075605 | U6: 0.002352075605 | V6: 0.03298414007 | W6: 0.03859099469 | X6: 0.101231293 | Y6: 0.1211253891 | Z6: 0 | AA6: 0 | AB6: 0 | AC6: 0.7092137187 | AD6: 0 | AE6: 0 | AF6: 3 | AG6: 2 | AH6: =_xlfn.IFS(K6>0.005,"High",N6>0.005,"Medium",N6<=0.005,"Low") -> High | AI6: =_xlfn.IFS(W6>0.005,"High",Y6>0.005,"Medium", Y6<=0.005,"Low") -> High | AJ6: High
A7: Car Park, Beach Green, Shoreham-by-Sea | B7: 0.956 | C7: 0.0004030307574 | D7: 1.290200585e-17 | E7: 0.9989766912 | F7: 0.0006202780072 | G7: 0 | H7: 0.0006202780072 | I7: 0.9995969692 | J7: 0 | K7: 0.9995969692 | L7: 0.9995969692 | M7: 0 | N7: 0.9995969692 | O7: 0.9995969692 | P7: 0 | Q7: 0 | R7: 5.28712133e-06 | S7: 0.1147424281 | T7: 0 | U7: 0 | V7: 0.1185315496 | W7: 0.1933044418 | X7: 0.6314017071 | Y7: 0.7410677653 | Z7: 0 | AA7: 0 | AB7: 0 | AC7: 0 | AD7: 0 | AE7: 0 | AF7: 3 | AG7: 2 | AH7: =_xlfn.IFS(K7>0.005,"High",N7>0.005,"Medium",N7<=0.005,"Low") -> High | AI7: =_xlfn.IFS(W7>0.005,"High",Y7>0.005,"Medium", Y7<=0.005,"Low") -> High | AJ7: High
A8: Car Park, Tarmount Lane, Shoreham-by-Sea | B8: 0.165 | C8: 1 | D8: 0 | E8: 0 | F8: 0 | G8: 0 | H8: 0 | I8: 0 | J8: 0 | K8: 0 | L8: 0 | M8: 0 | N8: 0 | O8: 0 | P8: 0 | Q8: 0 | R8: 0 | S8: 0.0001810248549 | T8: 0 | U8: 0 | V8: 0.0001810248549 | W8: 0.0001810248549 | X8: 0.07921738505 | Y8: 0.1017053439 | Z8: 0 | AA8: 0 | AB8: 0 | AC8: 0 | AD8: 0 | AE8: 0 | AF8: 0 | AG8: 0 | AH8: =_xlfn.IFS(K8>0.005,"High",N8>0.005,"Medium",N8<=0.005,"Low") -> Low | AI8: =_xlfn.IFS(W8>0.005,"High",Y8>0.005,"Medium", Y8<=0.005,"Low") -> Medium | AJ8: Medium
A9: Community Buildings, Pond Road, Shoreham-by-Sea | B9: 0.59 | C9: 1 | D9: 0 | E9: 0 | F9: 0 | G9: 0 | H9: 0 | I9: 0 | J9: 0 | K9: 0 | L9: 0.3955696444 | M9: 0 | N9: 0.001391137578 | O9: 0.7572238677 | P9: 0 | Q9: 0 | R9: 0 | S9: 0.1496443151 | T9: 0 | U9: 0 | V9: 0.148966349 | W9: 0.1651621145 | X9: 0.2900254308 | Y9: 0.3223390539 | Z9: 0 | AA9: 0 | AB9: 0 | AC9: 0 | AD9: 0 | AE9: 0 | AF9: 0 | AG9: 0 | AH9: =_xlfn.IFS(K9>0.005,"High",N9>0.005,"Medium",N9<=0.005,"Low") -> Low | AI9: =_xlfn.IFS(W9>0.005,"High",Y9>0.005,"Medium", Y9<=0.005,"Low") -> High | AJ9: High
A10: Co-op Ham Road | B10: 0.577 | C10: 1 | D10: 0 | E10: 0 | F10: 0 | G10: 0 | H10: 0 | I10: 0.007366710024 | J10: 0 | K10: 0.01517272889 | L10: 0.1373039447 | M10: 0 | N10: 0.07996257299 | O10: 0.327732679 | P10: 0 | Q10: 0 | R10: 0 | S10: 0.02558632773 | T10: 0 | U10: 0 | V10: 0.02404019449 | W10: 0.03349044592 | X10: 0.07089048073 | Y10: 0.08342540664 | Z10: 0 | AA10: 0 | AB10: 0 | AC10: 0 | AD10: 0 | AE10: 0 | AF10: 2 | AG10: 1 | AH10: =_xlfn.IFS(K10>0.005,"High",N10>0.005,"Medium",N10<=0.005,"Low") -> High | AI10: =_xlfn.IFS(W10>0.005,"High",Y10>0.005,"Medium", Y10<=0.005,"Low") -> High | AJ10: High
A11: Eastbrook Allotments, Old Shoreham Road, Southwick | B11: 4.18 | C11: 1 | D11: 0 | E11: 0 | F11: 0 | G11: 0 | H11: 0 | I11: 0 | J11: 0 | K11: 0 | L11: 0 | M11: 0 | N11: 0 | O11: 0 | P11: 0 | Q11: 0 | R11: 0 | S11: 0.01519473644 | T11: 0 | U11: 0 | V11: 0.01414210486 | W11: 0.03294420055 | X11: 0.09563060122 | Y11: 0.1261411927 | Z11: 0 | AA11: 0 | AB11: 0 | AC11: 0.3286231781 | AD11: 0 | AE11: 0 | AF11: 0 | AG11: 0 | AH11: =_xlfn.IFS(K11>0.005,"High",N11>0.005,"Medium",N11<=0.005,"Low") -> Low | AI11: =_xlfn.IFS(W11>0.005,"High",Y11>0.005,"Medium", Y11<=0.005,"Low") -> High | AJ11: High
A12: Egypt Wharf / Lennards Wharf | B12: 2.623 | C12: 0.3197454767 | D12: 0.1487126022 | E12: 0.3011232411 | F12: 0.2304186801 | G12: 0 | H12: 0.8926129601 | I12: 0.9449438853 | J12: 0 | K12: 0.928235125 | L12: 0.9584938517 | M12: 0 | N12: 0.9495920422 | O12: 0.968628663 | P12: 0 | Q12: 0 | R12: 0.04835388581 | S12: 0.123806653 | T12: 0.003872291175 | U12: 0.04245406777 | V12: 0.1227391731 | W12: 0.1359216054 | X12: 0.2028281899 | Y12: 0.273240756 | Z12: 0 | AA12: 0 | AB12: 0 | AC12: 0 | AD12: 0 | AE12: 0 | AF12: 4 | AG12: 2 | AH12: =_xlfn.IFS(K12>0.005,"High",N12>0.005,"Medium",N12<=0.005,"Low") -> High | AI12: =_xlfn.IFS(W12>0.005,"High",Y12>0.005,"Medium", Y12<=0.005,"Low") -> High | AJ12: High
A13: Fishermans Wharf | B13: 0.995 | C13: 0.5699538083 | D13: 0.07314704177 | E13: 0.347891351 | F13: 0.009007798943 | G13: 0 | H13: 0.9526862806 | I13: 0.9668291489 | J13: 0 | K13: 0.999546984 | L13: 0.999546984 | M13: 0 | N13: 0.999546984 | O13: 0.999546984 | P13: 0 | Q13: 0 | R13: 0 | S13: 0.02566232292 | T13: 0 | U13: 0 | V13: 0.02566232292 | W13: 0.03659170986 | X13: 0.1152975282 | Y13: 0.1535587925 | Z13: 0 | AA13: 0 | AB13: 0 | AC13: 0 | AD13: 0 | AE13: 0 | AF13: 2 | AG13: 1 | AH13: =_xlfn.IFS(K13>0.005,"High",N13>0.005,"Medium",N13<=0.005,"Low") -> High | AI13: =_xlfn.IFS(W13>0.005,"High",Y13>0.005,"Medium", Y13<=0.005,"Low") -> High | AJ13: High
A14: Free Wharf | B14: 1.571 | C14: 0.1513628553 | D14: 0.1382021134 | E14: 0.7104350313 | F14: 0 | G14: 0 | H14: 0 | I14: 0 | J14: 0 | K14: 0.8873466249 | L14: 0.8905293111 | M14: 0 | N14: 0.888937968 | O14: 0.8953033403 | P14: 0 | Q14: 0 | R14: 0.01171228517 | S14: 0.02648446869 | T14: 0.008911521324 | U14: 0.01120305538 | V14: 0.03840920483 | W14: 0.06960697966 | X14: 0.1500317281 | Y14: 0.2550379331 | Z14: 0 | AA14: 0 | AB14: 0 | AC14: 0 | AD14: 0 | AE14: 0 | AF14: 3 | AG14: 2 | AH14: =_xlfn.IFS(K14>0.005,"High",N14>0.005,"Medium",N14<=0.005,"Low") -> High | AI14: =_xlfn.IFS(W14>0.005,"High",Y14>0.005,"Medium", Y14<=0.005,"Low") -> High | AJ14: High
A15: Frosts | B15: 0.747 | C15: 0.001015698129 | D15: 0.008481029815 | E15: 0.9905032721 | F15: 0 | G15: 0 | H15: 0 | I15: 0 | J15: 0 | K15: 0.9989843019 | L15: 0.9989843019 | M15: 0 | N15: 0.9989843019 | O15: 0.9989843019 | P15: 0 | Q15: 0 | R15: 0 | S15: 0.04217772619 | T15: 0 | U15: 0 | V15: 0.03596370714 | W15: 0.1127403256 | X15: 0.5949698968 | Y15: 0.6201615353 | Z15: 0 | AA15: 0 | AB15: 8.096574841e-05 | AC15: 0.003861385076 | AD15: 0 | AE15: 0 | AF15: 3 | AG15: 4 | AH15: =_xlfn.IFS(K15>0.005,"High",N15>0.005,"Medium",N15<=0.005,"Low") -> High | AI15: =_xlfn.IFS(W15>0.005,"High",Y15>0.005,"Medium", Y15<=0.005,"Low") -> High | AJ15: High
A16: Kingston Wharf | B16: 2.615 | C16: 0.3363592994 | D16: 0.1142545018 | E16: 0.5493861988 | F16: 0 | G16: 0 | H16: 0 | I16: 0 | J16: 0 | K16: 0.9472404802 | L16: 0.9539326408 | M16: 0 | N16: 0.950108549 | O16: 0.9565617039 | P16: 0 | Q16: 0.008413001912 | R16: 0.03227533461 | S16: 0.08654154964 | T16: 0.01728489484 | U16: 0.02921606119 | V16: 0.08440005824 | W16: 0.1905782631 | X16: 0.3589335282 | Y16: 0.4159094821 | Z16: 0 | AA16: 0 | AB16: 0.007862782214 | AC16: 0.01030172084 | AD16: 0 | AE16: 0 | AF16: 4 | AG16: 4 | AH16: =_xlfn.IFS(K16>0.005,"High",N16>0.005,"Medium",N16<=0.005,"Low") -> High | AI16: =_xlfn.IFS(W16>0.005,"High",Y16>0.005,"Medium", Y16<=0.005,"Low") -> High | AJ16: High
A17: Land at Eastbrook Primary School, Manor Hall Road, Southwick | B17: 0.705 | C17: 1 | D17: 0 | E17: 0 | F17: 0 | G17: 0 | H17: 0 | I17: 0 | J17: 0 | K17: 0 | L17: 0 | M17: 0 | N17: 0 | O17: 0 | P17: 0 | Q17: 0 | R17: 0.03120567376 | S17: 0.1612133804 | T17: 0.02496453901 | U17: 0.03007092199 | V17: 0.1508187705 | W17: 0.2148884369 | X17: 0.3811179636 | Y17: 0.4134899494 | Z17: 0 | AA17: 0 | AB17: 0 | AC17: 0.999148895 | AD17: 0 | AE17: 0 | AF17: 0 | AG17: 0 | AH17: =_xlfn.IFS(K17>0.005,"High",N17>0.005,"Medium",N17<=0.005,"Low") -> Low | AI17: =_xlfn.IFS(W17>0.005,"High",Y17>0.005,"Medium", Y17<=0.005,"Low") -> High | AJ17: High
A18: Land at junction of Saltings Roundabout, New Salts Farm, New Salts Farm Road, Lancing | B18: 0.907 | C18: 0.0006289499569 | D18: 0 | E18: 0.99937105 | F18: 0 | G18: 0 | H18: 0 | I18: 0.5518086048 | J18: 0 | K18: 0.99937105 | L18: 0.99937105 | M18: 0 | N18: 0.99937105 | O18: 0.99937105 | P18: 0 | Q18: 0 | R18: 0.01473119074 | S18: 0.04601127 | T18: 0.009569883131 | U18: 0.01442980154 | V18: 0.02397926177 | W18: 0.03542365584 | X18: 0.08305470124 | Y18: 0.09684330062 | Z18: 0 | AA18: 0 | AB18: 0 | AC18: 0 | AD18: 0 | AE18: 0 | AF18: 3 | AG18: 2 | AH18: =_xlfn.IFS(K18>0.005,"High",N18>0.005,"Medium",N18<=0.005,"Low") -> High | AI18: =_xlfn.IFS(W18>0.005,"High",Y18>0.005,"Medium", Y18<=0.005,"Low") -> High | AJ18: High
A19: Land at Mill Hill, Shoreham-by-Sea | B19: 5.916 | C19: 1 | D19: 0 | E19: 0 | F19: 0 | G19: 0 | H19: 0 | I19: 0 | J19: 0 | K19: 0 | L19: 0 | M19: 0 | N19: 0 | O19: 0 | P19: 0 | Q19: 0 | R19: 0 | S19: 0 | T19: 0 | U19: 0 | V19: 0 | W19: 0.0008708750622 | X19: 0.001722594659 | Y19: 0.00678251475 | Z19: 0 | AA19: 0 | AB19: 0 | AC19: 0 | AD19: 0 | AE19: 0 | AF19: 0 | AG19: 0 | AH19: =_xlfn.IFS(K19>0.005,"High",N19>0.005,"Medium",N19<=0.005,"Low") -> Low | AI19: =_xlfn.IFS(W19>0.005,"High",Y19>0.005,"Medium", Y19<=0.005,"Low") -> Medium | AJ19: Medium
A20: Land east of Manor Close | B20: 2.832 | C20: 0.0003357009029 | D20: 0 | E20: 0.9996642991 | F20: 0 | G20: 0 | H20: 0 | I20: 0.08468094894 | J20: 0 | K20: 0.9996642991 | L20: 0.9996642991 | M20: 0 | N20: 0.9996642991 | O20: 0.9996642991 | P20: 0 | Q20: 0.1017126367 | R20: 0.3724792412 | S20: 0.7744723362 | T20: 0.1849976343 | U20: 0.3315360932 | V20: 0.7743310933 | W20: 0.7888376047 | X20: 0.8481414477 | Y20: 0.8752415728 | Z20: 0 | AA20: 0 | AB20: 0.9996642991 | AC20: 0 | AD20: 0.1653345195 | AE20: 0 | AF20: 4 | AG20: 4 | AH20: =_xlfn.IFS(K20>0.005,"High",N20>0.005,"Medium",N20<=0.005,"Low") -> High | AI20: =_xlfn.IFS(W20>0.005,"High",Y20>0.005,"Medium", Y20<=0.005,"Low") -> High | AJ20: High
A21: Land east of Minstrels Gallery | B21: 3.106 | C21: 0.000453376009 | D21: 0 | E21: 0.999546624 | F21: 0 | G21: 0 | H21: 0.009694778108 | I21: 0.8905270262 | J21: 0 | K21: 0.999546624 | L21: 0.999546624 | M21: 0 | N21: 0.999546624 | O21: 0.999546624 | P21: 0 | Q21: 0 | R21: 0.004221272949 | S21: 0.04689322582 | T21: 0.003219575016 | U21: 0.004155941136 | V21: 0.02816257972 | W21: 0.04981523085 | X21: 0.1537751571 | Y21: 0.2131082549 | Z21: 0 | AA21: 0 | AB21: 0.1313281701 | AC21: 0.0008578264033 | AD21: 0.012049719 | AE21: 0 | AF21: 3 | AG21: 4 | AH21: =_xlfn.IFS(K21>0.005,"High",N21>0.005,"Medium",N21<=0.005,"Low") -> High | AI21: =_xlfn.IFS(W21>0.005,"High",Y21>0.005,"Medium", Y21<=0.005,"Low") -> High | AJ21: High
A22: Land east of, Adur Close, Lancing | B22: 0.189 | C22: 0.002217157545 | D22: 0 | E22: 0.9977828425 | F22: 0 | G22: 0 | H22: 0 | I22: 0.9977828425 | J22: 0 | K22: 0.9977828425 | L22: 0.9977828425 | M22: 0 | N22: 0.9977828425 | O22: 0.9977828425 | P22: 0 | Q22: 0 | R22: 0 | S22: 0 | T22: 0 | U22: 0 | V22: 0 | W22: 0 | X22: 0.003593441652 | Y22: 0.003799306961 | Z22: 0 | AA22: 0 | AB22: 0 | AC22: 0 | AD22: 0 | AE22: 0 | AF22: 2 | AG22: 2 | AH22: =_xlfn.IFS(K22>0.005,"High",N22>0.005,"Medium",N22<=0.005,"Low") -> High | AI22: =_xlfn.IFS(W22>0.005,"High",Y22>0.005,"Medium", Y22<=0.005,"Low") -> Low | AJ22: High
A23: Land north of Hill Farm Way | B23: 0.243 | C23: 1 | D23: 0 | E23: 0 | F23: 0 | G23: 0 | H23: 0 | I23: 0 | J23: 0 | K23: 0 | L23: 0 | M23: 0 | N23: 0 | O23: 0 | P23: 0 | Q23: 0 | R23: 0 | S23: 0 | T23: 0 | U23: 0 | V23: 0 | W23: 0 | X23: 0.00448998369 | Y23: 0.08568360509 | Z23: 0 | AA23: 0 | AB23: 0 | AC23: 0 | AD23: 0 | AE23: 0 | AF23: 0 | AG23: 0 | AH23: =_xlfn.IFS(K23>0.005,"High",N23>0.005,"Medium",N23<=0.005,"Low") -> Low | AI23: =_xlfn.IFS(W23>0.005,"High",Y23>0.005,"Medium", Y23<=0.005,"Low") -> Medium | AJ23: Medium
A24: Land north of Minstrels Gallery | B24: 1.016 | C24: 0.004824337963 | D24: 0.07849416884 | E24: 0.9166814932 | F24: 0 | G24: 0 | H24: 0 | I24: 0 | J24: 0 | K24: 0.9991963269 | L24: 0.9991963269 | M24: 0 | N24: 0.9991963269 | O24: 0.9991963269 | P24: 0 | Q24: 0 | R24: 0 | S24: 0.01850393701 | T24: 0 | U24: 0 | V24: 0 | W24: 0.01023622047 | X24: 0.03031496063 | Y24: 0.0365667024 | Z24: 0 | AA24: 0 | AB24: 0.1309256944 | AC24: 0.8305691802 | AD24: 0 | AE24: 0 | AF24: 2 | AG24: 4 | AH24: =_xlfn.IFS(K24>0.005,"High",N24>0.005,"Medium",N24<=0.005,"Low") -> High | AI24: =_xlfn.IFS(W24>0.005,"High",Y24>0.005,"Medium", Y24<=0.005,"Low") -> High | AJ24: High
A25: Land north of Willowbrook Park | B25: 0.948 | C25: 0.0008380368322 | D25: 0 | E25: 0.9991619632 | F25: 0 | G25: 0 | H25: 0.1804028329 | I25: 0.9991619632 | J25: 0 | K25: 0.9991619632 | L25: 0.9991619632 | M25: 0 | N25: 0.9991619632 | O25: 0.9991619632 | P25: 0 | Q25: 0.009468786948 | R25: 0.1371630425 | S25: 0.487707015 | T25: 0.04808417919 | U25: 0.1140425279 | V25: 0.4933904161 | W25: 0.5352463771 | X25: 0.7600743072 | Y25: 0.8225002894 | Z25: 0 | AA25: 0 | AB25: 0 | AC25: 0 | AD25: 0 | AE25: 0 | AF25: 4 | AG25: 2 | AH25: =_xlfn.IFS(K25>0.005,"High",N25>0.005,"Medium",N25<=0.005,"Low") -> High | AI25: =_xlfn.IFS(W25>0.005,"High",Y25>0.005,"Medium", Y25<=0.005,"Low") -> High | AJ25: High
A26: Land north west of West Avenue | B26: 7.27 | C26: 0.000488624045 | D26: 0 | E26: 0.999511376 | F26: 0 | G26: 0 | H26: 0.1332068305 | I26: 0.9261979491 | J26: 0 | K26: 0.999511376 | L26: 0.999511376 | M26: 0 | N26: 0.999511376 | O26: 0.999511376 | P26: 0 | Q26: 0 | R26: 0.006481747543 | S26: 0.1573390843 | T26: 0.0002053361537 | U26: 0.005152412527 | V26: 0.1573417139 | W26: 0.1945093234 | X26: 0.3706062608 | Y26: 0.4697104846 | Z26: 0 | AA26: 0 | AB26: 0 | AC26: 0 | AD26: 0.2931710505 | AE26: 0 | AF26: 4 | AG26: 2 | AH26: =_xlfn.IFS(K26>0.005,"High",N26>0.005,"Medium",N26<=0.005,"Low") -> High | AI26: =_xlfn.IFS(W26>0.005,"High",Y26>0.005,"Medium", Y26<=0.005,"Low") -> High | AJ26: High
A27: Land south of Minstrels Gallery | B27: 1.363 | C27: 0.0005957810939 | D27: 0 | E27: 0.9994042189 | F27: 0 | G27: 0 | H27: 0.03856451953 | I27: 0.9991526659 | J27: 0 | K27: 0.9994042189 | L27: 0.9994042189 | M27: 0 | N27: 0.9994042189 | O27: 0.9994042189 | P27: 0 | Q27: 0 | R27: 0.03255371091 | S27: 0.1506046503 | T27: 0 | U27: 0.02008846217 | V27: 0.15031118 | W27: 0.2216332326 | X27: 0.7019897771 | Y27: 0.835112143 | Z27: 0 | AA27: 0 | AB27: 0.08342903251 | AC27: 0 | AD27: 0 | AE27: 0 | AF27: 4 | AG27: 4 | AH27: =_xlfn.IFS(K27>0.005,"High",N27>0.005,"Medium",N27<=0.005,"Low") -> High | AI27: =_xlfn.IFS(W27>0.005,"High",Y27>0.005,"Medium", Y27<=0.005,"Low") -> High | AJ27: High
A28: Land to north of 123 to 207, Manor Hall Road, Southwick | B28: 1.769 | C28: 1 | D28: 0 | E28: 0 | F28: 0 | G28: 0 | H28: 0 | I28: 0 | J28: 0 | K28: 0 | L28: 0 | M28: 0 | N28: 0 | O28: 0 | P28: 0 | Q28: 0 | R28: 0 | S28: 0.01798988071 | T28: 0 | U28: 0 | V28: 0.01146311758 | W28: 0.02705100271 | X28: 0.0989906873 | Y28: 0.1331785165 | Z28: 0 | AA28: 0 | AB28: 0 | AC28: 0.9991126062 | AD28: 0 | AE28: 0 | AF28: 0 | AG28: 0 | AH28: =_xlfn.IFS(K28>0.005,"High",N28>0.005,"Medium",N28<=0.005,"Low") -> Low | AI28: =_xlfn.IFS(W28>0.005,"High",Y28>0.005,"Medium", Y28<=0.005,"Low") -> High | AJ28: High
A29: Land to north of 41 to 42, The Paddocks, Lancing | B29: 0.142 | C29: -0.002629092798 | D29: 0 | E29: 1.002629093 | F29: 0 | G29: 0 | H29: 0 | I29: 0.5312610969 | J29: 0 | K29: 1.002629093 | L29: 1.002629093 | M29: 0 | N29: 1.002629093 | O29: 1.002629093 | P29: 0 | Q29: 0.0004948799582 | R29: 0.082891618 | S29: 0.2879922013 | T29: 0.01700836009 | U29: 0.07420378601 | V29: 0.3722359792 | W29: 0.436945073 | X29: 0.6643913879 | Y29: 0.9413408182 | Z29: 0 | AA29: 0 | AB29: 0 | AC29: 0 | AD29: 0 | AE29: 0 | AF29: 3 | AG29: 2 | AH29: =_xlfn.IFS(K29>0.005,"High",N29>0.005,"Medium",N29<=0.005,"Low") -> High | AI29: =_xlfn.IFS(W29>0.005,"High",Y29>0.005,"Medium", Y29<=0.005,"Low") -> High | AJ29: High
A30: Land west of Highview, Mount Way, Lancing | B30: 0.856 | C30: 1 | D30: 0 | E30: 0 | F30: 0 | G30: 0 | H30: 0 | I30: 0 | J30: 0 | K30: 0 | L30: 0 | M30: 0 | N30: 0 | O30: 0 | P30: 0 | Q30: 0 | R30: 0 | S30: 0 | T30: 0 | U30: 0 | V30: 0 | W30: 0 | X30: 0.01307894839 | Y30: 0.02195745307 | Z30: 0 | AA30: 0 | AB30: 0 | AC30: 0 | AD30: 0 | AE30: 0 | AF30: 0 | AG30: 0 | AH30: =_xlfn.IFS(K30>0.005,"High",N30>0.005,"Medium",N30<=0.005,"Low") -> Low | AI30: =_xlfn.IFS(W30>0.005,"High",Y30>0.005,"Medium", Y30<=0.005,"Low") -> Medium | AJ30: Medium
A31: Laundry, Alma Street, Lancing BN15 8AX | B31: 0.104 | C31: 1 | D31: 0 | E31: 0 | F31: 0 | G31: 0 | H31: 0 | I31: 0 | J31: 0 | K31: 0 | L31: 0 | M31: 0 | N31: 0 | O31: 0 | P31: 0 | Q31: 0 | R31: 0 | S31: 0 | T31: 0 | U31: 0 | V31: 0 | W31: 0 | X31: 0 | Y31: 0 | Z31: 0 | AA31: 0 | AB31: 0 | AC31: 0.9963964459 | AD31: 0 | AE31: 0 | AF31: 0 | AG31: 0 | AH31: =_xlfn.IFS(K31>0.005,"High",N31>0.005,"Medium",N31<=0.005,"Low") -> Low | AI31: =_xlfn.IFS(W31>0.005,"High",Y31>0.005,"Medium", Y31<=0.005,"Low") -> Low | AJ31: Low
A32: Malthouse Industrial Estate | B32: 1.083 | C32: 0.8318235465 | D32: 0.1680814945 | E32: 9.495890583e-05 | F32: 0 | G32: 0 | H32: 0.5095932101 | I32: 0.8774714556 | J32: 0 | K32: 0.8081052258 | L32: 0.9108397362 | M32: 0 | N32: 0.9007766402 | O32: 0.9230690753 | P32: 0 | Q32: 0 | R32: 0.01366574331 | S32: 0.02830304407 | T32: 0 | U32: 0.01255771006 | V32: 0.02793369966 | W32: 0.02941107731 | X32: 0.05384253425 | Y32: 0.1513666019 | Z32: 0 | AA32: 0 | AB32: 0 | AC32: 0.007246992018 | AD32: 0 | AE32: 0 | AF32: 1 | AG32: 1 | AH32: =_xlfn.IFS(K32>0.005,"High",N32>0.005,"Medium",N32<=0.005,"Low") -> High | AI32: =_xlfn.IFS(W32>0.005,"High",Y32>0.005,"Medium", Y32<=0.005,"Low") -> High | AJ32: High
A33: New Monks Farm (former IKEA) | B33: 7.775 | C33: 0.180874632 | D33: 0.06734143839 | E33: 0.7517839296 | F33: 0 | G33: 0 | H33: 0.2349681393 | I33: 0.269969306 | J33: 0 | K33: 0.9745655772 | L33: 0.9867038409 | M33: 0 | N33: 0.9793887283 | O33: 0.9899466694 | P33: 0 | Q33: 0.09968062527 | R33: 0.2322343197 | S33: 0.3600445967 | T33: 0.146297631 | U33: 0.2220071181 | V33: 0.3570710084 | W33: 0.3890925111 | X33: 0.4779157512 | Y33: 0.4949701838 | Z33: 0 | AA33: 0 | AB33: 0.9505294111 | AC33: 0 | AD33: 0 | AE33: 0 | AF33: 4 | AG33: 4 | AH33: =_xlfn.IFS(K33>0.005,"High",N33>0.005,"Medium",N33<=0.005,"Low") -> High | AI33: =_xlfn.IFS(W33>0.005,"High",Y33>0.005,"Medium", Y33<=0.005,"Low") -> High | AJ33: High
A34: New Wharf | B34: 0.351 | C34: 1 | D34: 0 | E34: 0 | F34: 0 | G34: 0 | H34: 0.9992947601 | I34: 0.9992956721 | J34: 0 | K34: 0.9996771172 | L34: 0.9996771172 | M34: 0 | N34: 0.9996771172 | O34: 0.9996771172 | P34: 0 | Q34: 0 | R34: 0 | S34: 0.03362224698 | T34: 0 | U34: 0 | V34: 0.03362224698 | W34: 0.04159945496 | X34: 0.1653738003 | Y34: 0.1795004243 | Z34: 0 | AA34: 0 | AB34: 0 | AC34: 0 | AD34: 0 | AE34: 0 | AF34: 2 | AG34: 1 | AH34: =_xlfn.IFS(K34>0.005,"High",N34>0.005,"Medium",N34<=0.005,"Low") -> High | AI34: =_xlfn.IFS(W34>0.005,"High",Y34>0.005,"Medium", Y34<=0.005,"Low") -> High | AJ34: High
A35: Police Station, 107 - 111 North Road, Lancing BN15 9BB | B35: 0.116 | C35: 1 | D35: 0 | E35: 0 | F35: 0 | G35: 0 | H35: 0 | I35: 0 | J35: 0 | K35: 0 | L35: 0 | M35: 0 | N35: 0 | O35: 0 | P35: 0 | Q35: 0 | R35: 0 | S35: 0 | T35: 0 | U35: 0 | V35: 0 | W35: 0 | X35: 0 | Y35: 0 | Z35: 0 | AA35: 0 | AB35: 0.456296306 | AC35: 0.5499519269 | AD35: 0 | AE35: 0 | AF35: 0 | AG35: 0 | AH35: =_xlfn.IFS(K35>0.005,"High",N35>0.005,"Medium",N35<=0.005,"Low") -> Low | AI35: =_xlfn.IFS(W35>0.005,"High",Y35>0.005,"Medium", Y35<=0.005,"Low") -> Low | AJ35: Low
A36: Rectory Farm Industrial Estate, Rectory Farm Road, Sompting | B36: 0.992 | C36: 1 | D36: 0 | E36: 0 | F36: 0 | G36: 0 | H36: 0 | I36: 0 | J36: 0 | K36: 0 | L36: 0 | M36: 0 | N36: 0 | O36: 0 | P36: 0 | Q36: 0 | R36: 0.0125 | S36: 0.1969288888 | T36: 0 | U36: 0 | V36: 0.2061962903 | W36: 0.2528378689 | X36: 0.3219339942 | Y36: 0.336962027 | Z36: 0 | AA36: 0 | AB36: 0 | AC36: 0 | AD36: 0 | AE36: 0 | AF36: 0 | AG36: 0 | AH36: =_xlfn.IFS(K36>0.005,"High",N36>0.005,"Medium",N36<=0.005,"Low") -> Low | AI36: =_xlfn.IFS(W36>0.005,"High",Y36>0.005,"Medium", Y36<=0.005,"Low") -> High | AJ36: High
A37: Shoreham Airport | B37: 93.022 | C37: 0.02108392491 | D37: 0.03863837212 | E37: 0.9196746606 | F37: 0.02060304238 | G37: 0 | H37: 0.6452621442 | I37: 0.8323336882 | J37: 0 | K37: 0.9995563537 | L37: 0.9995563537 | M37: 0 | N37: 0.9995563537 | O37: 0.9995563537 | P37: 0 | Q37: 0 | R37: 0.0025952504 | S37: 0.05322971301 | T37: 0.0005160069661 | U37: 0.001986881789 | V37: 0.06457929657 | W37: 0.1288335787 | X37: 0.291181446 | Y37: 0.3397195875 | Z37: 0 | AA37: 0 | AB37: 0.0009881621401 | AC37: 0.002648102345 | AD37: 0.03226813372 | AE37: 2 | AF37: 4 | AG37: 4 | AH37: =_xlfn.IFS(K37>0.005,"High",N37>0.005,"Medium",N37<=0.005,"Low") -> High | AI37: =_xlfn.IFS(W37>0.005,"High",Y37>0.005,"Medium", Y37<=0.005,"Low") -> High | AJ37: High
A38: Shoreham Gateway | B38: 2.481 | C38: -4.073249035e-05 | D38: 0 | E38: 1.000040732 | F38: 0 | G38: 0 | H38: 1.000040732 | I38: 1.000040732 | J38: 0 | K38: 1.000040732 | L38: 1.000040732 | M38: 0 | N38: 1.000040732 | O38: 1.000040732 | P38: 0 | Q38: 0.07181371831 | R38: 0.1741348415 | S38: 0.4380654146 | T38: 0.1161592932 | U38: 0.1663600544 | V38: 0.4298429236 | W38: 0.5006151814 | X38: 0.7026297415 | Y38: 0.7666649473 | Z38: 0 | AA38: 0 | AB38: 0 | AC38: 0 | AD38: 0 | AE38: 0 | AF38: 4 | AG38: 2 | AH38: =_xlfn.IFS(K38>0.005,"High",N38>0.005,"Medium",N38<=0.005,"Low") -> High | AI38: =_xlfn.IFS(W38>0.005,"High",Y38>0.005,"Medium", Y38<=0.005,"Low") -> High | AJ38: High
A39: Shoreham Police Station, Ham Road, Shoreham-by-Sea | B39: 0.296 | C39: 1 | D39: 0 | E39: 0 | F39: 0 | G39: 0 | H39: 0 | I39: 0 | J39: 0 | K39: 0.008445945946 | L39: 0.01027220071 | M39: 0 | N39: 0.008445945946 | O39: 0.06112432694 | P39: 0 | Q39: 0 | R39: 0 | S39: 0.001559541915 | T39: 0 | U39: 0 | V39: 0.0009415649487 | W39: 0.003834676027 | X39: 0.04479917507 | Y39: 0.09631590358 | Z39: 0 | AA39: 0 | AB39: 0 | AC39: 0 | AD39: 0 | AE39: 0 | AF39: 0 | AG39: 0 | AH39: =_xlfn.IFS(K39>0.005,"High",N39>0.005,"Medium",N39<=0.005,"Low") -> High | AI39: =_xlfn.IFS(W39>0.005,"High",Y39>0.005,"Medium", Y39<=0.005,"Low") -> Medium | AJ39: High
A40: Southwick Estates | B40: 3.189 | C40: 1 | D40: 0 | E40: 0 | F40: 0 | G40: 0 | H40: 0 | I40: 0.001172100957 | J40: 0 | K40: 0.0007949709827 | L40: 0.01149180941 | M40: 0 | N40: 0.004787699953 | O40: 0.06984396831 | P40: 0 | Q40: 0 | R40: 0.004575144016 | S40: 0.03666192254 | T40: 0 | U40: 0.004631268939 | V40: 0.03507391063 | W40: 0.04841346733 | X40: 0.1575520434 | Y40: 0.2099939308 | Z40: 0 | AA40: 0 | AB40: 0 | AC40: 0.0358871252 | AD40: 0 | AE40: 0 | AF40: 0 | AG40: 0 | AH40: =_xlfn.IFS(K40>0.005,"High",N40>0.005,"Medium",N40<=0.005,"Low") -> Low | AI40: =_xlfn.IFS(W40>0.005,"High",Y40>0.005,"Medium", Y40<=0.005,"Low") -> High | AJ40: High
A41: Technology House | B41: 0.078 | C41: 1 | D41: 0 | E41: 0 | F41: 0 | G41: 0 | H41: 0 | I41: 0 | J41: 0 | K41: 0 | L41: 0 | M41: 0 | N41: 0 | O41: 0 | P41: 0 | Q41: 0 | R41: 0 | S41: 0 | T41: 0 | U41: 0 | V41: 0 | W41: 0 | X41: 0 | Y41: 0 | Z41: 0 | AA41: 0 | AB41: 0 | AC41: 1.002228615 | AD41: 0 | AE41: 0 | AF41: 0 | AG41: 0 | AH41: =_xlfn.IFS(K41>0.005,"High",N41>0.005,"Medium",N41<=0.005,"Low") -> Low | AI41: =_xlfn.IFS(W41>0.005,"High",Y41>0.005,"Medium", Y41<=0.005,"Low") -> Low | AJ41: Low

Sheet Sheet1

Sheet Raw Areas
A1: SHLAA cat | B1: Site Name | C1: Area (ha) | D1: Proportion of site shown to be at risk (%)
D2: Flood Map for Planning Flood Zones | G2: SFRA Flood Zones | K2: Fluvial and Tidal Flood Risk plus climate change | U2: EA Risk of Flooding from Surface Water | X2: EA Risk of Flooding from Surface Water plus CC | AD2: EA Reservoir Flood Extent | AF2: JBA Groundwater Flood Risk Dataset | AH2: Historic Flooding | AJ2: Tidally influenced
D3: FZ1 | E3: FZ2 | F3: FZ3 | G3: FZ1 | H3: FZ2 | I3: FZ3a | J3: FZ3b | K3: 3.3%AEP plus Central | L3: 3.3%AEP and 0.5% plus Higher Central | M3: 3.3%AEP and 0.5% plus Upper End | N3: 1%AEP plus Central | O3: 1%AEP and 0.5% plus Higher Central | P3: 1%AEP and 0.5% plus Upper End | Q3: 0.1%AEP plus Central | R3: 0.1%AEP and 0.5% plus Higher Central | S3: 0.1%AEP and 0.5% plus Upper End | T3: Flood Zone 2 as proxy where no detailed model available | U3: 30 year | V3: 100 year | W3: 1000 year | X3: 3.3%AEP+20% | Y3: 3.3%AEP +40% | Z3: 1%AEP+25% | AA3: 1%AEP +45% | AB3: 0.1%AEP+25% | AC3: 0.1%AEP +45% | AD3: Dry Day | AE3: Wet day | AF3: 0- 0.025m (grid code 4) | AG3: 0.025- 0.05m (grid code 3) | AH3: EA Historic Flood Map | AI3: West Sussex | AJ3: Tidally influenced Drainage Risk Zone (maximum risk) | AK3: Tidally influenced Groundwater Risk Zone (maximum risk)
B4: Temp site 1 | C4: 0.747 | E4: 0.7462412735 | F4: 0.7399059442 | H4: 0.7462412735 | I4: 0.69390319 | J4: =I4*0.0001 -> 6.9390319e-05 | K4: 0 | L4: 0 | M4: 0 | N4: 0 | O4: 0.7462412735 | P4: 0.7462412735 | Q4: 0 | R4: 0.7462412735 | S4: 0.7462412735 | T4: 0 | U4: 0 | V4: 0 | W4: 0.03150676147 | X4: 0 | Y4: 0 | Z4: 0.02686488924 | AA4: 0.08421702325 | AB4: 0.4444425129 | AC4: 0.4632606669 | AD4: 0 | AE4: 0 | AF4: 6.048141407e-05 | AG4: 0.002884454652 | AH4: 0 | AI4: 0 | AJ4: 3 | AK4: 4
B5: Temp site 2 | C5: 1.571 | E5: 1.333208954 | F5: 1.116093434 | H5: 1.281725255 | I5: 0.8925385682 | J5: =I5*0.0001 -> 8.925385682e-05 | K5: 0 | L5: 0 | M5: 0 | N5: 0 | O5: 1.394021548 | P5: 1.399021548 | Q5: 0 | R5: 1.396521548 | S5: 1.406521548 | T5: 0 | U5: 0 | V5: 0.0184 | W5: 0.04160710031 | X5: 0.014 | Y5: 0.0176 | Z5: 0.06034086078 | AA5: 0.109352565 | AB5: 0.2356998448 | AC5: 0.4006645929 | AD5: 0 | AE5: 0 | AF5: 0 | AG5: 0 | AH5: 0 | AI5: 0 | AJ5: 3 | AK5: 2
B6: Temp site 3 | C6: 2.615 | E6: 1.735420432 | F6: 1.43664491 | H6: 1.645993786 | I6: 1.197723179 | J6: 0.0001197723179 | K6: 0 | L6: 0 | M6: 0 | N6: 0 | O6: 2.477033856 | P6: 2.494533856 | Q6: 0 | R6: 2.484533856 | S6: 2.501408856 | T6: 0 | U6: 0.022 | V6: 0.0844 | W6: 0.2263061523 | X6: 0.0452 | Y6: 0.0764 | Z6: 0.2207061523 | AA6: 0.498362158 | AB6: 0.9386111762 | AC6: 1.087603296 | AD6: 0 | AE6: 0 | AF6: 0.02056117549 | AG6: 0.026939 | AH6: 0 | AI6: 0 | AJ6: 4 | AK6: 4
B7: Land north west of West Avenue | C7: 7.27 | E7: 7.266447703 | F7: 7.266447703 | H7: 7.266447703 | I7: 7.266447703 | J7: 0.0007266447703 | K7: 0 | L7: 0.9684136579 | M7: 6.73345909 | N7: 0 | O7: 7.266447703 | P7: 7.266447703 | Q7: 0 | R7: 7.266447703 | S7: 7.266447703 | T7: 0 | U7: 0 | V7: 0.04712230464 | W7: 1.143855143 | X7: 0.001492793838 | Y7: 0.03745803907 | Z7: 1.14387426 | AA7: 1.414082781 | AB7: 2.694307516 | AC7: 3.414795223 | AD7: 0 | AE7: 0 | AF7: 0 | AG7: 0 | AH7: 2.131353537 | AI7: 0 | AJ7: 4 | AK7: 2
B8: Land north of Willowbrook Park | C8: 0.948 | E8: 0.9472055411 | F8: 0.9472055411 | H8: 0.9472055411 | I8: 0.9472055411 | J8: 9.472055411e-05 | K8: 0 | L8: 0.1710218856 | M8: 0.9472055411 | N8: 0 | O8: 0.9472055411 | P8: 0.9472055411 | Q8: 0 | R8: 0.9472055411 | S8: 0.9472055411 | T8: 0 | U8: 0.008976410027 | V8: 0.1300305642 | W8: 0.4623462502 | X8: 0.04558380187 | Y8: 0.1081123164 | Z8: 0.4677341145 | AA8: 0.5074135655 | AB8: 0.7205504432 | AC8: 0.7797302743 | AD8: 0 | AE8: 0 | AF8: 0 | AG8: 0 | AH8: 0 | AI8: 0 | AJ8: 4 | AK8: 2
B9: Land south of Minstrels Gallery | C9: 1.363 | E9: 1.36218795 | F9: 1.36218795 | H9: 1.36218795 | I9: 1.36218795 | J9: 0.000136218795 | K9: 0 | L9: 0.05256344011 | M9: 1.361845084 | N9: 0 | O9: 1.36218795 | P9: 1.36218795 | Q9: 0 | R9: 1.36218795 | S9: 1.36218795 | T9: 0 | U9: 0 | V9: 0.04437070797 | W9: 0.2052741383 | X9: 0 | Y9: 0.02738057394 | Z9: 0.2048741383 | AA9: 0.302086096 | AB9: 0.9568120661 | AC9: 1.138257851 | AD9: 0 | AE9: 0 | AF9: 0.1137137713 | AG9: 0 | AH9: 0 | AI9: 0 | AJ9: 4 | AK9: 4
B10: Land east of Minstrels Gallery | C10: 3.106 | E10: 3.104591814 | F10: 3.104591814 | H10: 3.104591814 | I10: 3.104591814 | J10: 0.0003104591814 | K10: 0 | L10: 0.0301119808 | M10: 2.765976943 | N10: 0 | O10: 3.104591814 | P10: 3.104591814 | Q10: 0 | R10: 3.104591814 | S10: 3.104591814 | T10: 0 | U10: 0 | V10: 0.01311127378 | W10: 0.1456503594 | X10: 0.01 | Y10: 0.01290835317 | Z10: 0.08747297262 | AA10: 0.154726107 | AB10: 0.477625638 | AC10: 0.6619142396 | AD10: 0 | AE10: 0 | AF10: 0.4079052964 | AG10: 0.002664408809 | AH10: 0.0374264272 | AI10: 0 | AJ10: 3 | AK10: 4
B11: Land north of Minstrels Gallery | C11: 1.016 | E11: 1.011098473 | F11: 0.9313483971 | H11: 1.01028836 | I11: 0.8803068933 | J11: 8.803068933e-05 | K11: 0 | L11: 0 | M11: 0 | N11: 0 | O11: 1.015183468 | P11: 1.015183468 | Q11: 0 | R11: 1.015183468 | S11: 1.015183468 | T11: 0 | U11: 0 | V11: 0 | W11: 0.0188 | X11: 0 | Y11: 0 | Z11: 0 | AA11: 0.0104 | AB11: 0.0308 | AC11: 0.03715176964 | AD11: 0 | AE11: 0 | AF11: 0.1330205055 | AG11: 0.8438582871 | AH11: 0 | AI11: 0 | AJ11: 2 | AK11: 4
B12: Police Station, 107 - 111 North Road, Lancing BN15 9BB | C12: 0.116 | E12: 0 | F12: 0 | H12: 0 | I12: 0 | J12: 0 | K12: 0 | L12: 0 | M12: 0 | N12: 0 | O12: 0 | P12: 0 | Q12: 0 | R12: 0 | S12: 0 | T12: 0 | U12: 0 | V12: 0 | W12: 0 | X12: 0 | Y12: 0 | Z12: 0 | AA12: 0 | AB12: 0 | AC12: 0 | AD12: 0 | AE12: 0 | AF12: 0.0529303715 | AG12: 0.06379442352 | AH12: 0 | AI12: 0 | AJ12: 0 | AK12: 0
B13: Laundry, Alma Street, Lancing BN15 8AX | C13: 0.104 | E13: 0 | F13: 0 | H13: 0 | I13: 0 | J13: 0 | K13: 0 | L13: 0 | M13: 0 | N13: 0 | O13: 0 | P13: 0 | Q13: 0 | R13: 0 | S13: 0 | T13: 0 | U13: 0 | V13: 0 | W13: 0 | X13: 0 | Y13: 0 | Z13: 0 | AA13: 0 | AB13: 0 | AC13: 0 | AD13: 0 | AE13: 0 | AF13: 0 | AG13: 0.1036252304 | AH13: 0 | AI13: 0 | AJ13: 0 | AK13: 0
B14: Rectory Farm Industrial Estate, Rectory Farm Road, Sompting | C14: 0.992 | E14: 0 | F14: 0 | H14: 0 | I14: 0 | J14: 0 | K14: 0 | L14: 0 | M14: 0 | N14: 0 | O14: 0 | P14: 0 | Q14: 0 | R14: 0 | S14: 0 | T14: 0 | U14: 0 | V14: 0.0124 | W14: 0.1953534577 | X14: 0 | Y14: 0 | Z14: 0.20454672 | AA14: 0.2508151659 | AB14: 0.3193585222 | AC14: 0.3342663308 | AD14: 0 | AE14: 0 | AF14: 0 | AG14: 0 | AH14: 0 | AI14: 0 | AJ14: 0 | AK14: 0
B15: Community Buildings, Pond Road, Shoreham-by-Sea | C15: 0.59 | E15: 0 | F15: 0 | H15: 0 | I15: 0 | J15: 0 | K15: 0 | L15: 0 | M15: 0 | N15: 0 | O15: 0 | P15: 0.2333860902 | Q15: 0 | R15: 0.0008207711711 | S15: 0.4467620819 | T15: 0 | U15: 0 | V15: 0 | W15: 0.08829014591 | X15: 0 | Y15: 0 | Z15: 0.08789014591 | AA15: 0.09744564758 | AB15: 0.1711150042 | AC15: 0.1901800418 | AD15: 0 | AE15: 0 | AF15: 0 | AG15: 0 | AH15: 0 | AI15: 0 | AJ15: 0 | AK15: 0
B16: Land east of, Adur Close, Lancing | C16: 0.189 | E16: 0.1885809572 | F16: 0.1885809572 | H16: 0.1885809572 | I16: 0.1885809572 | J16: 1.885809572e-05 | K16: 0 | L16: 0 | M16: 0.1885809572 | N16: 0 | O16: 0.1885809572 | P16: 0.1885809572 | Q16: 0 | R16: 0.1885809572 | S16: 0.1885809572 | T16: 0 | U16: 0 | V16: 0 | W16: 0 | X16: 0 | Y16: 0 | Z16: 0 | AA16: 0 | AB16: 0.0006791604722 | AC16: 0.0007180690156 | AD16: 0 | AE16: 0 | AF16: 0 | AG16: 0 | AH16: 0 | AI16: 0 | AJ16: 2 | AK16: 2
B17: Land at junction of Saltings Roundabout, New Salts Farm, New Salts Farm Road, Lancing | C17: 0.907 | E17: 0.9064295424 | F17: 0.9064295424 | H17: 0.9064295424 | I17: 0.9064295424 | J17: 9.064295424e-05 | K17: 0 | L17: 0 | M17: 0.5004904045 | N17: 0 | O17: 0.9064295424 | P17: 0.9064295424 | Q17: 0 | R17: 0.9064295424 | S17: 0.9064295424 | T17: 0 | U17: 0 | V17: 0.01336119 | W17: 0.04173222189 | X17: 0.008679884 | Y17: 0.01308783 | Z17: 0.02174919042 | AA17: 0.03212925584 | AB17: 0.07533061402 | AC17: 0.08783687366 | AD17: 0 | AE17: 0 | AF17: 0 | AG17: 0 | AH17: 0 | AI17: 0 | AJ17: 3 | AK17: 2
B18: Land at Mill Hill, Shoreham-by-Sea | C18: 5.916 | E18: 0 | F18: 0 | H18: 0 | I18: 0 | J18: 0 | K18: 0 | L18: 0 | M18: 0 | N18: 0 | O18: 0 | P18: 0 | Q18: 0 | R18: 0 | S18: 0 | T18: 0 | U18: 0 | V18: 0 | W18: 0 | X18: 0 | Y18: 0 | Z18: 0 | AA18: 0.005152096868 | AB18: 0.01019087 | AC18: 0.04012535726 | AD18: 0 | AE18: 0 | AF18: 0 | AG18: 0 | AH18: 0 | AI18: 0 | AJ18: 0 | AK18: 0
B19: Shoreham Police Station, Ham Road, Shoreham-by-Sea | C19: 0.296 | E19: 0 | F19: 0 | H19: 0.0025 | I19: 0.0025 | J19: 2.5e-07 | K19: 0 | L19: 0 | M19: 0 | N19: 0 | O19: 0.0025 | P19: 0.00304057141 | Q19: 0 | R19: 0.0025 | S19: 0.01809280077 | T19: 0 | U19: 0 | V19: 0 | W19: 0.0004616244069 | X19: 0 | Y19: 0 | Z19: 0.0002787032248 | AA19: 0.001135064104 | AB19: 0.01326055582 | AC19: 0.02850950746 | AD19: 0 | AE19: 0 | AF19: 0 | AG19: 0 | AH19: 0 | AI19: 0 | AJ19: 0 | AK19: 0
B20: Land at Eastbrook Primary School, Manor Hall Road, Southwick | C20: 0.705 | E20: 0 | F20: 0 | H20: 0 | I20: 0 | J20: 0 | K20: 0 | L20: 0 | M20: 0 | N20: 0 | O20: 0 | P20: 0 | Q20: 0 | R20: 0 | S20: 0 | T20: 0 | U20: 0 | V20: 0.022 | W20: 0.1136554332 | X20: 0.0176 | Y20: 0.0212 | Z20: 0.1063272332 | AA20: 0.151496348 | AB20: 0.2686881643 | AC20: 0.2915104143 | AD20: 0 | AE20: 0 | AF20: 0 | AG20: 0.704399971 | AH20: 0 | AI20: 0 | AJ20: 0 | AK20: 0
B21: Land west of Highview, Mount Way, Lancing | C21: 0.856 | E21: 0 | F21: 0 | H21: 0 | I21: 0 | J21: 0 | K21: 0 | L21: 0 | M21: 0 | N21: 0 | O21: 0 | P21: 0 | Q21: 0 | R21: 0 | S21: 0 | T21: 0 | U21: 0 | V21: 0 | W21: 0 | X21: 0 | Y21: 0 | Z21: 0 | AA21: 0 | AB21: 0.01119557982 | AC21: 0.01879557982 | AD21: 0 | AE21: 0 | AF21: 0 | AG21: 0 | AH21: 0 | AI21: 0 | AJ21: 0 | AK21: 0
B22: Land east of Manor Close | C22: 2.832 | E22: 2.831049295 | F22: 2.831049295 | H22: 2.831049295 | I22: 2.831049295 | J22: 0.0002831049295 | K22: 0 | L22: 0 | M22: 0.2398164474 | N22: 0 | O22: 2.831049295 | P22: 2.831049295 | Q22: 0 | R22: 2.831049295 | S22: 2.831049295 | T22: 0 | U22: 0.2880501871 | V22: 1.054861211 | W22: 2.193305656 | X22: 0.5239133004 | Y22: 0.9389102161 | Z22: 2.192905656 | AA22: 2.233988096 | AB22: 2.40193658 | AC22: 2.478684134 | AD22: 0 | AE22: 0 | AF22: 2.831049295 | AG22: 0 | AH22: 0.4682273593 | AI22: 0 | AJ22: 4 | AK22: 4
B23: Co-op Ham Road | C23: 0.577 | E23: 0 | F23: 0 | H23: 0 | I23: 0 | J23: 0 | K23: 0 | L23: 0 | M23: 0.004250591684 | N23: 0 | O23: 0.008754664572 | P23: 0.0792243761 | Q23: 0 | R23: 0.04613840461 | S23: 0.1891017558 | T23: 0 | U23: 0 | V23: 0 | W23: 0.0147633111 | X23: 0 | Y23: 0 | Z23: 0.01387119222 | AA23: 0.0193239873 | AB23: 0.04090380738 | AC23: 0.04813645963 | AD23: 0 | AE23: 0 | AF23: 0 | AG23: 0 | AH23: 0 | AI23: 0 | AJ23: 2 | AK23: 1
B24: Land north of Hill Farm Way | C24: 0.243 | E24: 0 | F24: 0 | H24: 0 | I24: 0 | J24: 0 | K24: 0 | L24: 0 | M24: 0 | N24: 0 | O24: 0 | P24: 0 | Q24: 0 | R24: 0 | S24: 0 | T24: 0 | U24: 0 | V24: 0 | W24: 0 | X24: 0 | Y24: 0 | Z24: 0 | AA24: 0 | AB24: 0.001091066037 | AC24: 0.02082111604 | AD24: 0 | AE24: 0 | AF24: 0 | AG24: 0 | AH24: 0 | AI24: 0 | AJ24: 0 | AK24: 0
B25: Technology House | C25: 0.078 | E25: 0 | F25: 0 | H25: 0 | I25: 0 | J25: 0 | K25: 0 | L25: 0 | M25: 0 | N25: 0 | O25: 0 | P25: 0 | Q25: 0 | R25: 0 | S25: 0 | T25: 0 | U25: 0 | V25: 0 | W25: 0 | X25: 0 | Y25: 0 | Z25: 0 | AA25: 0 | AB25: 0 | AC25: 0 | AD25: 0 | AE25: 0 | AF25: 0 | AG25: 0.07817383193 | AH25: 0 | AI25: 0 | AJ25: 0 | AK25: 0
B26: B&Q and Halfords | C26: 1.299 | E26: 0 | F26: 0 | H26: 0.008083773204 | I26: 0 | J26: 0 | K26: 0 | L26: 0.3276555157 | M26: 0.6825027723 | N26: 0 | O26: 0.7425927348 | P26: 1.114707018 | Q26: 0 | R26: 1.025512761 | S26: 1.250470769 | T26: 0 | U26: 0.004361738092 | V26: 0.006644813241 | W26: 0.04324639796 | X26: 0.003055346211 | Y26: 0.003055346211 | Z26: 0.04284639796 | AA26: 0.05012970211 | AB26: 0.1314994495 | AC26: 0.1573418805 | AD26: 0 | AE26: 0 | AF26: 0 | AG26: 0.9212686205 | AH26: 0 | AI26: 0 | AJ26: 3 | AK26: 2
B27: Southwick Estates | C27: 3.189 | E27: 0 | F27: 0 | H27: 0 | I27: 0 | J27: 0 | K27: 0 | L27: 0 | M27: 0.003737829951 | N27: 0 | O27: 0.002535162464 | P27: 0.0366473802 | Q27: 0 | R27: 0.01526797515 | S27: 0.2227324149 | T27: 0 | U27: 0 | V27: 0.01459013427 | W27: 0.116914871 | X27: 0 | Y27: 0.01476911665 | Z27: 0.111850701 | AA27: 0.1543905473 | AB27: 0.5024334663 | AC27: 0.6696706452 | AD27: 0 | AE27: 0 | AF27: 0 | AG27: 0.1144440423 | AH27: 0 | AI27: 0 | AJ27: 0 | AK27: 0
B28: Shoreham Gateway | C28: 2.481 | E28: 2.481101057 | F28: 2.481101057 | H28: 2.481101057 | I28: 2.481101057 | J28: 0.0002481101057 | K28: 0 | L28: 2.481101057 | M28: 2.481101057 | N28: 0 | O28: 2.481101057 | P28: 2.481101057 | Q28: 0 | R28: 2.481101057 | S28: 2.481101057 | T28: 0 | U28: 0.1781698351 | V28: 0.4320285416 | W28: 1.086840294 | X28: 0.2881912064 | Y28: 0.4127392951 | Z28: 1.066440294 | AA28: 1.242026265 | AB28: 1.743224389 | AC28: 1.902095734 | AD28: 0 | AE28: 0 | AF28: 0 | AG28: 0 | AH28: 0 | AI28: 0 | AJ28: 4 | AK28: 2
B29: Land to north of 123 to 207, Manor Hall Road, Southwick | C29: 1.769 | E29: 0 | F29: 0 | H29: 0 | I29: 0 | J29: 0 | K29: 0 | L29: 0 | M29: 0 | N29: 0 | O29: 0 | P29: 0 | Q29: 0 | R29: 0 | S29: 0 | T29: 0 | U29: 0 | V29: 0 | W29: 0.03182409898 | X29: 0 | Y29: 0 | Z29: 0.020278255 | AA29: 0.0478532238 | AB29: 0.1751145258 | AC29: 0.2355927957 | AD29: 0 | AE29: 0 | AF29: 0 | AG29: 1.7674302 | AH29: 0 | AI29: 0 | AJ29: 0 | AK29: 0
B30: Eastbrook Allotments, Old Shoreham Road, Southwick | C30: 4.18 | E30: 0 | F30: 0 | H30: 0 | I30: 0 | J30: 0 | K30: 0 | L30: 0 | M30: 0 | N30: 0 | O30: 0 | P30: 0 | Q30: 0 | R30: 0 | S30: 0 | T30: 0 | U30: 0 | V30: 0 | W30: 0.06351399831 | X30: 0 | Y30: 0 | Z30: 0.05911399831 | AA30: 0.1377067583 | AB30: 0.3997359131 | AC30: 0.5272701856 | AD30: 0 | AE30: 0 | AF30: 0 | AG30: 1.373644884 | AH30: 0 | AI30: 0 | AJ30: 0 | AK30: 0
B31: Car Park, Beach Green, Shoreham-by-Sea | C31: 0.956 | E31: 0.9556147026 | F31: 0.9556147026 | H31: 0.9556147026 | I31: 0.9556147026 | J31: 9.556147026e-05 | K31: 0 | L31: 0.0005929857749 | M31: 0.9556147026 | N31: 0 | O31: 0.9556147026 | P31: 0.9556147026 | Q31: 0 | R31: 0.9556147026 | S31: 0.9556147026 | T31: 0 | U31: 0 | V31: 5.054487992e-06 | W31: 0.1096937613 | X31: 0 | Y31: 0 | Z31: 0.1133161614 | AA31: 0.1847990463 | AB31: 0.603620032 | AC31: 0.7084607836 | AD31: 0 | AE31: 0 | AF31: 0 | AG31: 0 | AH31: 0 | AI31: 0 | AJ31: 3 | AK31: 2
B32: Car Park, Tarmount Lane, Shoreham-by-Sea | C32: 0.165 | E32: 0 | F32: 0 | H32: 0 | I32: 0 | J32: 0 | K32: 0 | L32: 0 | M32: 0 | N32: 0 | O32: 0 | P32: 0 | Q32: 0 | R32: 0 | S32: 0 | T32: 0 | U32: 0 | V32: 0 | W32: 2.986910106e-05 | X32: 0 | Y32: 0 | Z32: 2.986910106e-05 | AA32: 2.986910106e-05 | AB32: 0.01307086853 | AC32: 0.01678138175 | AD32: 0 | AE32: 0 | AF32: 0 | AG32: 0 | AH32: 0 | AI32: 0 | AJ32: 0 | AK32: 0
B33: Land to north of 41 to 42, The Paddocks, Lancing | C33: 0.142 | E33: 0.1423733312 | F33: 0.1423733312 | H33: 0.1423733312 | I33: 0.1423733312 | J33: 1.423733312e-05 | K33: 0 | L33: 0 | M33: 0.07543907576 | N33: 0 | O33: 0.1423733312 | P33: 0.1423733312 | Q33: 0 | R33: 0.1423733312 | S33: 0.1423733312 | T33: 0 | U33: 7.027295406e-05 | V33: 0.01177060976 | W33: 0.04089489259 | X33: 0.002415187132 | Y33: 0.01053693761 | Z33: 0.05285750905 | AA33: 0.06204620036 | AB33: 0.09434357708 | AC33: 0.1336703962 | AD33: 0 | AE33: 0 | AF33: 0 | AG33: 0 | AH33: 0 | AI33: 0 | AJ33: 3 | AK33: 2
B34: Egypt Wharf / Lennards Wharf | C34: 2.623 | E34: 1.784307615 | F34: 1.394234459 | H34: 1.617771362 | I34: 0.9797099621 | J34: 9.797099621e-05 | K34: 0 | L34: 2.341323794 | M34: 2.478587811 | N34: 0 | O34: 2.434760733 | P34: 2.514129373 | Q34: 0 | R34: 2.490779927 | S34: 2.540712983 | T34: 0 | U34: 0 | V34: 0.1268322425 | W34: 0.3247448509 | X34: 0.01015701975 | Y34: 0.1113570198 | Z34: 0.3219448509 | AA34: 0.3565223709 | AB34: 0.5320183422 | AC34: 0.716710503 | AD34: 0 | AE34: 0 | AF34: 0 | AG34: 0 | AH34: 0 | AI34: 0 | AJ34: 4 | AK34: 2
B35: Fishermans Wharf | C35: 0.995 | E35: 0.4278959607 | F35: 0.3551146542 | H35: 0.4017759858 | I35: 0.252022374 | J35: 2.52022374e-05 | K35: 0 | L35: 0.9479228492 | M35: 0.9619950031 | N35: 0 | O35: 0.9945492491 | P35: 0.9945492491 | Q35: 0 | R35: 0.9945492491 | S35: 0.9945492491 | T35: 0 | U35: 0 | V35: 0 | W35: 0.02553401131 | X35: 0 | Y35: 0 | Z35: 0.02553401131 | AA35: 0.03640875131 | AB35: 0.1147210406 | AC35: 0.1527909985 | AD35: 0 | AE35: 0 | AF35: 0 | AG35: 0 | AH35: 0 | AI35: 0 | AJ35: 2 | AK35: 1
B36: 77A Brighton Road | C36: 0.054 | E36: 0.05418285231 | F36: 0.05102835452 | H36: 0.05418285231 | I36: 0.04722993922 | J36: 4.722993922e-06 | K36: 0 | L36: 0.05418285231 | M36: 0.05418285231 | N36: 0 | O36: 0.05418285231 | P36: 0.05418285231 | Q36: 0 | R36: 0.05418285231 | S36: 0.05418285231 | T36: 0 | U36: 0 | V36: 0 | W36: 0 | X36: 0 | Y36: 0 | Z36: 0 | AA36: 0 | AB36: 0.008292293217 | AC36: 0.008896602675 | AD36: 0 | AE36: 0 | AF36: 0 | AG36: 0 | AH36: 0 | AI36: 0 | AJ36: 2 | AK36: 2
B37: New Wharf | C37: 0.351 | E37: 0 | F37: 0 | H37: 0 | I37: 0 | J37: 0 | K37: 0 | L37: 0.3507524608 | M37: 0.3507527809 | N37: 0 | O37: 0.3508866681 | P37: 0.3508866681 | Q37: 0 | R37: 0.3508866681 | S37: 0.3508866681 | T37: 0 | U37: 0 | V37: 0 | W37: 0.01180140869 | X37: 0 | Y37: 0 | Z37: 0.01180140869 | AA37: 0.01460140869 | AB37: 0.05804620391 | AC37: 0.06300464891 | AD37: 0 | AE37: 0 | AF37: 0 | AG37: 0 | AH37: 0 | AI37: 0 | AJ37: 2 | AK37: 1
B38: 5 Brighton Road | C38: 0.503 | E38: 0.4994356665 | F38: 0.4836999643 | H38: 0.4956808976 | I38: 0.4560172249 | J38: 4.560172249e-05 | K38: 0 | L38: 0.5032517647 | M38: 0.5032517647 | N38: 0 | O38: 0.5032517647 | P38: 0.5032517647 | Q38: 0 | R38: 0.5032517647 | S38: 0.5032517647 | T38: 0 | U38: 0 | V38: 0 | W38: 0 | X38: 0 | Y38: 0 | Z38: 0.00138105 | AA38: 0.00138105 | AB38: 0.01018542361 | AC38: 0.04174349562 | AD38: 0 | AE38: 0 | AF38: 0.003887475 | AG38: 0 | AH38: 0 | AI38: 0 | AJ38: 3 | AK38: 2
B39: Malthouse Industrial Estate | C39: 1.083 | E39: 0.1821350991 | F39: 0.000102840495 | H39: 0.1550202622 | I39: 0 | J39: 0 | K39: 0 | L39: 0.5518894465 | M39: 0.9503015864 | N39: 0 | O39: 0.8751779596 | P39: 0.9864394343 | Q39: 0 | R39: 0.9755411013 | S39: 0.9996838085 | T39: 0 | U39: 0 | V39: 0.0148 | W39: 0.03065219673 | X39: 0 | Y39: 0.0136 | Z39: 0.03025219673 | AA39: 0.03185219673 | AB39: 0.05831146459 | AC39: 0.1639300298 | AD39: 0 | AE39: 0 | AF39: 0 | AG39: 0.007848492355 | AH39: 0 | AI39: 0 | AJ39: 1 | AK39: 1
B40: Shoreham Airport | C40: 93.022 | E40: 91.06073114 | F40: 87.46651249 | H40: 90.95496001 | I40: 87.20444791 | J40: 0.008720444791 | K40: 0 | L40: 60.02357518 | M40: 77.42534435 | N40: 0 | O40: 92.98073114 | P40: 92.98073114 | Q40: 0 | R40: 92.98073114 | S40: 92.98073114 | T40: 0 | U40: 0 | V40: 0.2414153827 | W40: 4.951534364 | X40: 0.048 | Y40: 0.1848237177 | Z40: 6.007295325 | AA40: 11.98435716 | AB40: 27.08628047 | AC40: 31.60139547 | AD40: 0 | AE40: 0 | AF40: 0.0919208186 | AG40: 0.2463317763 | AH40: 3.001646335 | AI40: 2 | AJ40: 4 | AK40: 4
B41: New Monks Farm (former IKEA) | C41: 7.775 | E41: 6.368699736 | F41: 5.845120053 | H41: 6.238497363 | I41: 5.823668148 | J41: 0.0005823668148 | K41: 0 | L41: 1.826877283 | M41: 2.099011354 | N41: 0 | O41: 7.577247363 | P41: 7.671622363 | Q41: 0 | R41: 7.614747363 | S41: 7.696835355 | T41: 0 | U41: 0.7750168615 | V41: 1.805621835 | W41: 2.79934674 | X41: 1.137464081 | Y41: 1.726105344 | Z41: 2.77622709 | AA41: 3.025194274 | AB41: 3.715794965 | AC41: 3.848393179 | AD41: 0 | AE41: 0 | AF41: 7.390366171 | AG41: 0 | AH41: 0 | AI41: 0 | AJ41: 4 | AK41: 4

Sheet Calculations (hidden)
A1: Name | B1: SHLAA REF | C1: HELAA ref | D1: Achieveable | E1: Site (ha) | G1: FZ3b (ha) | I1: FZ3b (%) | J1: FZ3a (ha) | M1: FZ3a (%) | N1: FZ2 (ha) | Q1: FZ2 (%) | R1: FZ1 (%) | S1: FZ2(proxy) | T1: HFM | U1: HFM | V1: HF Instances (within 50m) | W1: SW30 | Y1: SW100 | AB1: SW1000 | AE1: GW High Risk | AG1: GW Moderate Risk | AI1: Fluvial CC 25% | AK1: Fluvial CC 35% | AM1: Fluvial CC 70% | AO1: Surface Water +20% | AQ1: Surface Water +40%
A2: Gatwick Airport | B2: N/A | E2: 693.7634709 | F2: =ROUND(E2,2) -> 693.76 | G2: 40.28649397 | H2: =ROUND(G2,2) -> 40.29 | I2: =H2/F2 -> 0.05807483856 | J2: 195.4408151 | K2: =ROUND(J2,2) -> 195.44 | L2: =K2/F2 -> 0.2817112546 | M2: =L2-I2 -> 0.2236364161 | N2: 351.4305355 | O2: =ROUND(N2,2) -> 351.43 | P2: =O2/F2 -> 0.506558464 | Q2: =P2-L2 -> 0.2248472094 | R2: =1-P2 -> 0.493441536 | S2: 0 | T2: 22.96263705 | U2: =T2/E2 -> 0.03309865396 | V2: 0 | W2: 25.64220537 | X2: =W2/E2 -> 0.03696101977 | Y2: 60.75672388 | Z2: =Y2/E2 -> 0.08757555914 | AA2: =Y2/E2 -> 0.08757555914 | AB2: 202.1625975 | AC2: =AB2/E2 -> 0.2913998877 | AD2: =AB2/E2 -> 0.2913998877 | AE2: 0 | AF2: =AE2/E2 -> 0 | AG2: 242.1867689 | AH2: =AG2/E2 -> 0.3490912668 | AI2: 256.2585459 | AJ2: =AI2/E2 -> 0.3693745154 | AK2: 276.0170154 | AL2: =AK2/E2 -> 0.3978546392 | AM2: 326.5403468 | AN2: =AM2/E2 -> 0.4706796487 | AO2: 90.68027763 | AP2: =AO2/E2 -> 0.1307077721 | AQ2: 121.3052604 | AR2: =AQ2/E2 -> 0.1748510342
A3: Town Centre | B3: N/A | E3: 63.73253256 | F3: 63.73 | G3: 0 | H3: 0 | I3: 0 | J3: 0 | K3: 0 | L3: 0 | M3: 0 | N3: 0 | O3: 0 | P3: 0 | Q3: 0 | R3: 1 | S3: 0 | T3: 0 | U3: 0 | V3: 0 | W3: 2.521773062 | X3: 0.03956806611 | Y3: 6.864448929 | Z3: 0.1077071419 | AA3: 0.1077071419 | AB3: 16.91027289 | AC3: 0.2653318833 | AD3: 0.2653318833 | AE3: 0 | AF3: 0 | AG3: 0 | AH3: 0 | AI3: 0 | AJ3: 0 | AK3: 0 | AL3: 0 | AM3: 0 | AN3: 0 | AO3: 9.249455445 | AP3: 0.1451292625 | AQ3: 11.24905288 | AR3: 0.1765040935
A4: Area Action Plan | B4: N/A | E4: 603.6875275 | F4: 603.69 | G4: 29.89740342 | H4: 29.9 | I4: 0.04952873163 | J4: 47.66435087 | K4: 47.66 | L4: 0.07894780434 | M4: 0.0294190727 | N4: 83.05054429 | O4: 83.05 | P4: 0.1375706074 | Q4: 0.05862280309 | R4: 0.8624293926 | S4: 0 | T4: 32.57607181 | U4: 0.05396181025 | V4: 0 | W4: 23.78277074 | X4: 0.03939582923 | Y4: 44.11130912 | Z4: 0.07306977055 | AA4: 0.07306977055 | AB4: 137.6141096 | AC4: 0.2279558601 | AD4: 0.2279558601 | AE4: 0 | AF4: 0 | AG4: 120.597214 | AH4: 0.1997676091 | AI4: 58.27579095 | AJ4: 0.09653303786 | AK4: 61.39435594 | AL4: 0.1016988974 | AM4: 71.35816302 | AN4: 0.1182038054 | AO4: 62.60690115 | AP4: 0.1037074617 | AQ4: 82.26516141 | AR4: 0.1362710967
A5: Area Action Plan | B5: N/A | E5: 6.08457503 | F5: 6.08 | G5: 0.7289336619 | H5: 0.73 | I5: 0.1200657895 | J5: 0.9511838314 | K5: 0.95 | L5: 0.15625 | M5: 0.03618421053 | N5: 1.442142096 | O5: 1.44 | P5: 0.2368421053 | Q5: 0.08059210526 | R5: 0.7631578947 | S5: 0 | T5: 0 | U5: 0 | V5: 0 | W5: 0.1381323219 | X5: 0.02270204923 | Y5: 0.1963657415 | Z5: 0.03227271264 | AA5: 0.03227271264 | AB5: 1.204132965 | AC5: 0.1978992714 | AD5: 0.1978992714 | AE5: 0 | AF5: 0 | AG5: 0.1998576461 | AH5: 0.03284660722 | AI5: 1.130338713 | AJ5: 0.1857711849 | AK5: 1.189405153 | AL5: 0.1954787551 | AM5: 1.416039021 | AN5: 0.2327260349 | AO5: 0.3227450084 | AP5: 0.05304314711 | AQ5: 0.4958357403 | AR5: 0.08149061156
A6: Land at Jersey Farm (Site A) | B6: N/A | E6: 0.66438541 | F6: 0.66 | G6: 0 | H6: 0 | I6: 0 | J6: 0 | K6: 0 | L6: 0 | M6: 0 | N6: 0 | O6: 0 | P6: 0 | Q6: 0 | R6: 1 | S6: 0 | T6: 0 | U6: 0 | V6: 0 | W6: 0 | X6: 0 | Y6: 0 | Z6: 0 | AA6: 0 | AB6: 0.2171530338 | AC6: 0.3268479869 | AD6: 0.3268479869 | AE6: 0 | AF6: 0 | AG6: 0 | AH6: 0 | AI6: 0 | AJ6: 0 | AK6: 0 | AL6: 0 | AM6: 0 | AN6: 0 | AO6: 0 | AP6: 0 | AQ6: 0 | AR6: 0
A7: Space Gatwick, Faraday Road | B7: N/A | E7: 1.555504529 | F7: 1.56 | G7: 0 | H7: 0 | I7: 0 | J7: 0 | K7: 0 | L7: 0 | M7: 0 | N7: 0 | O7: 0 | P7: 0 | Q7: 0 | R7: 1 | S7: 0 | T7: 0 | U7: 0 | V7: 0 | W7: 0 | X7: 0 | Y7: 0 | Z7: 0 | AA7: 0 | AB7: 0.003783960212 | AC7: 0.002432625647 | AD7: 0.002432625647 | AE7: 0 | AF7: 0 | AG7: 0 | AH7: 0 | AI7: 0 | AJ7: 0 | AK7: 0 | AL7: 0 | AM7: 0 | AN7: 0 | AO7: 6.694134837e-07 | AP7: 4.303513563e-07 | AQ7: 3.65528801e-06 | AR7: 2.34990509e-06
A8: Southways, London Road | B8: N/A | E8: 2.874163297 | F8: 2.87 | G8: 0 | H8: 0 | I8: 0 | J8: 0 | K8: 0 | L8: 0 | M8: 0 | N8: 0 | O8: 0 | P8: 0 | Q8: 0 | R8: 1 | S8: 0 | T8: 0 | U8: 0 | V8: 0 | W8: 0.002846023655 | X8: 0.0009902094491 | Y8: 0.02983013928 | Z8: 0.01037872111 | AA8: 0.01037872111 | AB8: 0.3579433951 | AC8: 0.1245382945 | AD8: 0.1245382945 | AE8: 0 | AF8: 0 | AG8: 0.004221290444 | AH8: 0.001468702369 | AI8: 0 | AJ8: 0 | AK8: 0 | AL8: 0 | AM8: 0 | AN8: 0 | AO8: 0.08332871135 | AP8: 0.02899233716 | AQ8: 0.1707658899 | AR8: 0.05941412238
A9: Gatwick Park (Site G1), Gatwick Road | B9: N/A | E9: 0.7968791974 | F9: 0.8 | G9: 0 | H9: 0 | I9: 0 | J9: 0 | K9: 0 | L9: 0 | M9: 0 | N9: 0 | O9: 0 | P9: 0 | Q9: 0 | R9: 1 | S9: 0 | T9: 0 | U9: 0 | V9: 0 | W9: 0 | X9: 0 | Y9: 0.0112 | Z9: 0.01405482793 | AA9: 0.01405482793 | AB9: 0.09131352882 | AC9: 0.1145889228 | AD9: 0.1145889228 | AE9: 0 | AF9: 0 | AG9: 0 | AH9: 0 | AI9: 0 | AJ9: 0 | AK9: 0 | AL9: 0 | AM9: 0 | AN9: 0 | AO9: 0.0396 | AP9: 0.04969385589 | AQ9: 0.05613987294 | AR9: 0.07044966555
A10: Gatwick Park (Site G2), BCL House, Gatwick Road | B10: N/A | E10: 0.4439429443 | F10: 0.44 | G10: 0 | H10: 0 | I10: 0 | J10: 0 | K10: 0 | L10: 0 | M10: 0 | N10: 0 | O10: 0 | P10: 0 | Q10: 0 | R10: 1 | S10: 0 | T10: 0 | U10: 0 | V10: 0 | W10: 0 | X10: 0 | Y10: 0 | Z10: 0 | AA10: 0 | AB10: 0.0275002046 | AC10: 0.06194535795 | AD10: 0.06194535795 | AE10: 0 | AF10: 0 | AG10: 0 | AH10: 0 | AI10: 0 | AJ10: 0 | AK10: 0 | AL10: 0 | AM10: 0 | AN10: 0 | AO10: 0 | AP10: 0 | AQ10: 3.055971899e-05 | AR10: 6.883704173e-05
A11: Manor Royal | B11: N/A | E11: 241.4206449 | F11: 241.42 | G11: 5.118049718 | H11: 5.12 | I11: 0.02120785353 | J11: 14.14971612 | K11: 14.15 | L11: 0.05861154834 | M11: 0.03740369481 | N11: 29.12347844 | O11: 29.12 | P11: 0.120619667 | Q11: 0.06200811863 | R11: 0.879380333 | S11: 0 | T11: 2.44925268 | U11: 0.01014516667 | V11: 0 | W11: 6.112025878 | X11: 0.02531691472 | Y11: 16.977708 | Z11: 0.07032417632 | AA11: 0.07032417632 | AB11: 50.44791806 | AC11: 0.2089627343 | AD11: 0.2089627343 | AE11: 0 | AF11: 0 | AG11: 1.270237264 | AH11: 0.005261510524 | AI11: 19.02332388 | AJ11: 0.07879741971 | AK11: 20.24567616 | AL11: 0.08386058354 | AM11: 23.89827664 | AN11: 0.09899019467 | AO11: 23.4239255 | AP11: 0.09702536215 | AQ11: 30.30375174 | AR11: 0.1255226195
A12: Land West of Bewbush | B12: SA289 | E12: 134.340062 | F12: =ROUND(E12,2) -> 134.34 | G12: 0 | H12: =ROUND(G12,2) -> 0 | I12: 0 | J12: 2.195598223 | K12: =ROUND(J12,2) -> 2.2 | L12: =K12/F12 -> 0.01637635849 | M12: 0.01637635849 | N12: 3.407223102 | O12: =ROUND(N12,2) -> 3.41 | P12: =O12/F12 -> 0.02538335566 | Q12: 0.009006997171 | R12: 0.9746166443 | S12: =Q12+M12 -> 0.02538335566 | T12: 0 | U12: =T12/E12 -> 0 | V12: 0 | W12: 6.960882362 | X12: =W12/E12 -> 0.05181538744 | Y12: 10.523124 | Z12: =Y12/E12 -> 0.07833198708 | AA12: =Y12/E12 -> 0.07833198708 | AB12: 22.6029621 | AC12: =AB12/E12 -> 0.1682518361 | AD12: =AB12/E12 -> 0.1682518361 | AE12: 0 | AF12: =AE12/E12 -> 0 | AG12: 0 | AH12: =AG12/E12 -> 0 | AI12: 0 | AJ12: =AI12/E12 -> 0 | AK12: 0 | AL12: =AK12/E12 -> 0 | AM12: 0 | AN12: =AM12/E12 -> 0 | AO12: 13.55301488 | AP12: =AO12/E12 -> 0.1008858763 | AQ12: 16.27361192 | AR12: =AQ12/E12 -> 0.1211374453
A13: Land West of Kilnwood Vale | B13: SA291 | E13: 35.1354716 | F13: =ROUND(E13,2) -> 35.14 | G13: 0 | H13: =ROUND(G13,2) -> 0 | I13: 0 | J13: 0 | K13: =ROUND(J13,2) -> 0 | L13: =K13/F13 -> 0 | M13: 0 | N13: 0 | O13: =ROUND(N13,2) -> 0 | P13: =O13/F13 -> 0 | Q13: 0 | R13: 1 | S13: 0 | T13: 0 | U13: =T13/E13 -> 0 | V13: 0 | W13: 1.936273791 | X13: =W13/E13 -> 0.05510880323 | Y13: 2.978331325 | Z13: =Y13/E13 -> 0.0847670798 | AA13: =Y13/E13 -> 0.0847670798 | AB13: 9.866349294 | AC13: =AB13/E13 -> 0.2808087908 | AD13: =AB13/E13 -> 0.2808087908 | AE13: 0 | AF13: =AE13/E13 -> 0 | AG13: 0 | AH13: =AG13/E13 -> 0 | AI13: 0 | AJ13: =AI13/E13 -> 0 | AK13: 0 | AL13: =AK13/E13 -> 0 | AM13: 0 | AN13: =AM13/E13 -> 0 | AO13: 3.778152527 | AP13: =AO13/E13 -> 0.1075310037 | AQ13: 4.757726799 | AR13: =AQ13/E13 -> 0.1354109275
A14: Land off Rusper Road, Ifield | B14: SA468 | E14: 4.545631741 | F14: =ROUND(E14,2) -> 4.55 | G14: 0.05382678246 | H14: =ROUND(G14,2) -> 0.05 | I14: 0.01098901099 | J14: 0.05382678246 | K14: =ROUND(J14,2) -> 0.05 | L14: =K14/F14 -> 0.01098901099 | M14: 0 | N14: 0.05983601704 | O14: =ROUND(N14,2) -> 0.06 | P14: =O14/F14 -> 0.01318681319 | Q14: 0.002197802198 | R14: 0.9868131868 | S14: 0 | T14: 0 | U14: =T14/E14 -> 0 | V14: 0 | W14: 0.07070424025 | X14: =W14/E14 -> 0.0155543265 | Y14: 0.166646231 | Z14: =Y14/E14 -> 0.03666074167 | AA14: =Y14/E14 -> 0.03666074167 | AB14: 0.5872596392 | AC14: =AB14/E14 -> 0.1291920843 | AD14: =AB14/E14 -> 0.1291920843 | AE14: 0 | AF14: =AE14/E14 -> 0 | AG14: 0 | AH14: =AG14/E14 -> 0 | AI14: 0.0540469424 | AJ14: =AI14/E14 -> 0.01188986383 | AK14: 0.05570389143 | AL14: =AK14/E14 -> 0.0122543784 | AM14: 0.05794882885 | AN14: =AM14/E14 -> 0.01274824538 | AO14: 0.220165321 | AP14: =AO14/E14 -> 0.0484344825 | AQ14: 0.328505731 | AR14: =AQ14/E14 -> 0.07226844358
A15: 2 - 12 Friston Walk | B15: N/A | E15: 0.5327109173 | F15: 0.53 | G15: 0 | H15: 0 | I15: 0 | J15: 0 | K15: 0 | L15: 0 | M15: 0 | N15: 0 | O15: 0 | P15: 0 | Q15: 0 | R15: 1 | S15: 0 | T15: 0 | U15: 0 | V15: 0 | W15: 0 | X15: 0 | Y15: 0.03921263249 | Z15: 0.07360959052 | AA15: 0.07360959052 | AB15: 0.2946716171 | AC15: 0.5531548304 | AD15: 0.5531548304 | AE15: 0 | AF15: 0 | AG15: 0 | AH15: 0 | AI15: 0 | AJ15: 0 | AK15: 0 | AL15: 0 | AM15: 0 | AN15: 0 | AO15: 0.1013518287 | AP15: 0.1902567141 | AQ15: 0.1646132011 | AR15: 0.3090103765
A16: Parkside Car Park | B16: N/A | E16: 0.2427822387 | F16: 0.24 | G16: 0 | H16: 0 | I16: 0 | J16: 0 | K16: 0 | L16: 0 | M16: 0 | N16: 0 | O16: 0 | P16: 0 | Q16: 0 | R16: 1 | S16: 0 | T16: 0 | U16: 0 | V16: 0 | W16: 0.01231626 | X16: 0.05072965824 | Y16: 0.02722987 | Z16: 0.1121575867 | AA16: 0.1121575867 | AB16: 0.06992896303 | AC16: 0.2880316262 | AD16: 0.2880316262 | AE16: 0 | AF16: 0 | AG16: 0 | AH16: 0 | AI16: 0 | AJ16: 0 | AK16: 0 | AL16: 0 | AM16: 0 | AN16: 0 | AO16: 0.0352144725 | AP16: 0.1450455053 | AQ16: 0.04401206014 | AR16: 0.1812820426
A17: Crawley College Car Park | B17: N/A | E17: 0.3610972768 | F17: 0.36 | G17: 0 | H17: 0 | I17: 0 | J17: 0 | K17: 0 | L17: 0 | M17: 0 | N17: 0 | O17: 0 | P17: 0 | Q17: 0 | R17: 1 | S17: 0 | T17: 0 | U17: 0 | V17: 0 | W17: 0.09690521156 | X17: 0.2683631747 | Y17: 0.1297196833 | Z17: 0.3592375009 | AA17: 0.3592375009 | AB17: 0.1935695278 | AC17: 0.536059229 | AD17: 0.536059229 | AE17: 0 | AF17: 0 | AG17: 0 | AH17: 0 | AI17: 0 | AJ17: 0 | AK17: 0 | AL17: 0 | AM17: 0 | AN17: 0 | AO17: 0.143213213 | AP17: 0.3966056302 | AQ17: 0.155376488 | AR17: 0.430289836
A18: Zurich House | B18: N/A | E18: 0.3061661104 | F18: 0.31 | G18: 0 | H18: 0 | I18: 0 | J18: 0 | K18: 0 | L18: 0 | M18: 0 | N18: 0 | O18: 0 | P18: 0 | Q18: 0 | R18: 1 | S18: 0 | T18: 0 | U18: 0 | V18: 0 | W18: 0.08496897017 | X18: 0.2775257198 | Y18: 0.103148643 | Z18: 0.336904182 | AA18: 0.336904182 | AB18: 0.1377942583 | AC18: 0.450063719 | AD18: 0.450063719 | AE18: 0 | AF18: 0 | AG18: 0 | AH18: 0 | AI18: 0 | AJ18: 0 | AK18: 0 | AL18: 0 | AM18: 0 | AN18: 0 | AO18: 0.1108387217 | AP18: 0.3620215235 | AQ18: 0.1164243201 | AR18: 0.3802652094
A19: 138 - 144 London Road | B19: N/A | E19: 0.2796351051 | F19: 0.28 | G19: 0 | H19: 0 | I19: 0 | J19: 0 | K19: 0 | L19: 0 | M19: 0 | N19: 0 | O19: 0 | P19: 0 | Q19: 0 | R19: 1 | S19: 0 | T19: 0 | U19: 0 | V19: 0 | W19: 0 | X19: 0 | Y19: 0 | Z19: 0 | AA19: 0 | AB19: 0 | AC19: 0 | AD19: 0 | AE19: 0 | AF19: 0 | AG19: 0 | AH19: 0 | AI19: 0 | AJ19: 0 | AK19: 0 | AL19: 0 | AM19: 0 | AN19: 0 | AO19: 0 | AP19: 0 | AQ19: 0 | AR19: 0
A20: 8 - 9 Queens Square | B20: N/A | E20: 0.041707625 | F20: 0.04 | G20: 0 | H20: 0 | I20: 0 | J20: 0 | K20: 0 | L20: 0 | M20: 0 | N20: 0 | O20: 0 | P20: 0 | Q20: 0 | R20: 1 | S20: 0 | T20: 0 | U20: 0 | V20: 0 | W20: 0 | X20: 0 | Y20: 0 | Z20: 0 | AA20: 0 | AB20: 0.0007979844998 | AC20: 0.01913282043 | AD20: 0.01913282043 | AE20: 0 | AF20: 0 | AG20: 0 | AH20: 0 | AI20: 0 | AJ20: 0 | AK20: 0 | AL20: 0 | AM20: 0 | AN20: 0 | AO20: 0.0003103149998 | AP20: 0.007440246234 | AQ20: 0.0004750914998 | AR20: 0.01139099864
A21: 15 - 29 The Broadway | B21: N/A | E21: 0.1099981004 | F21: 0.11 | G21: 0 | H21: 0 | I21: 0 | J21: 0 | K21: 0 | L21: 0 | M21: 0 | N21: 0 | O21: 0 | P21: 0 | Q21: 0 | R21: 1 | S21: 0 | T21: 0 | U21: 0 | V21: 0 | W21: 0.001405178689 | X21: 0.01277457232 | Y21: 0.003483351309 | Z21: 0.03166737696 | AA21: 0.03166737696 | AB21: 0.004871313629 | AC21: 0.04428543414 | AD21: 0.04428543414 | AE21: 0 | AF21: 0 | AG21: 0 | AH21: 0 | AI21: 0 | AJ21: 0 | AK21: 0 | AL21: 0 | AM21: 0 | AN21: 0 | AO21: 0.003483351309 | AP21: 0.03166737696 | AQ21: 0.003979152469 | AR21: 0.03617473807
A22: Former EDF Building | B22: N/A | E22: 0.3337383368 | F22: 0.33 | G22: 0 | H22: 0 | I22: 0 | J22: 0 | K22: 0 | L22: 0 | M22: 0 | N22: 0 | O22: 0 | P22: 0 | Q22: 0 | R22: 1 | S22: 0 | T22: 0 | U22: 0 | V22: 0 | W22: 0 | X22: 0 | Y22: 0 | Z22: 0 | AA22: 0 | AB22: 0.0136 | AC22: 0.04075048774 | AD22: 0.04075048774 | AE22: 0 | AF22: 0 | AG22: 0 | AH22: 0 | AI22: 0 | AJ22: 0 | AK22: 0 | AL22: 0 | AM22: 0 | AN22: 0 | AO22: 0 | AP22: 0 | AQ22: 0 | AR22: 0
A23: County Buildings | B23: N/A | E23: 1.048319727 | F23: 1.05 | G23: 0 | H23: 0 | I23: 0 | J23: 0 | K23: 0 | L23: 0 | M23: 0 | N23: 0 | O23: 0 | P23: 0 | Q23: 0 | R23: 1 | S23: 0 | T23: 0 | U23: 0 | V23: 0 | W23: 0 | X23: 0 | Y23: 0 | Z23: 0 | AA23: 0 | AB23: 0.0268 | AC23: 0.02556471972 | AD23: 0.02556471972 | AE23: 0 | AF23: 0 | AG23: 0 | AH23: 0 | AI23: 0 | AJ23: 0 | AK23: 0 | AL23: 0 | AM23: 0 | AN23: 0 | AO23: 0 | AP23: 0 | AQ23: 0 | AR23: 0
A24: Shaw House | B24: N/A | E24: 0.1997238806 | F24: 0.2 | G24: 0 | H24: 0 | I24: 0 | J24: 0 | K24: 0 | L24: 0 | M24: 0 | N24: 0 | O24: 0 | P24: 0 | Q24: 0 | R24: 1 | S24: 0 | T24: 0 | U24: 0 | V24: 0 | W24: 0 | X24: 0 | Y24: 0.0001796518826 | Z24: 0.0008995012618 | AA24: 0.0008995012618 | AB24: 0.001902907959 | AC24: 0.009527693702 | AD24: 0.009527693702 | AE24: 0 | AF24: 0 | AG24: 0 | AH24: 0 | AI24: 0 | AJ24: 0 | AK24: 0 | AL24: 0 | AM24: 0 | AN24: 0 | AO24: 0.0004837031281 | AP24: 0.002421859252 | AQ24: 0.0004837031281 | AR24: 0.002421859252
A25: Oak Tree Filling Station, 114 London Road | B25: N/A | E25: 0.1975352129 | F25: 0.2 | G25: 0 | H25: 0 | I25: 0 | J25: 0 | K25: 0 | L25: 0 | M25: 0 | N25: 0 | O25: 0 | P25: 0 | Q25: 0 | R25: 1 | S25: 0 | T25: 0 | U25: 0 | V25: 0 | W25: 0 | X25: 0 | Y25: 5.042395101e-07 | Z25: 2.552656322e-06 | AA25: 2.552656322e-06 | AB25: 0.01290292093 | AC25: 0.06531959918 | AD25: 0.06531959918 | AE25: 0 | AF25: 0 | AG25: 0 | AH25: 0 | AI25: 0 | AJ25: 0 | AK25: 0 | AL25: 0 | AM25: 0 | AN25: 0 | AO25: 8.835386634e-05 | AP25: 0.0004472816012 | AQ25: 0.00192750519 | AR25: 0.009757780204
A26: Oakhurst Grange | B26: N/A | E26: 1.484962962 | F26: 1.48 | G26: 0 | H26: 0 | I26: 0 | J26: 0 | K26: 0 | L26: 0 | M26: 0 | N26: 0 | O26: 0 | P26: 0 | Q26: 0 | R26: 1 | S26: 0 | T26: 0 | U26: 0 | V26: 0 | W26: 0 | X26: 0 | Y26: 0 | Z26: 0 | AA26: 0 | AB26: 0.072 | AC26: 0.0484860578 | AD26: 0.0484860578 | AE26: 0 | AF26: 0 | AG26: 0 | AH26: 0 | AI26: 0 | AJ26: 0 | AK26: 0 | AL26: 0 | AM26: 0 | AN26: 0 | AO26: 0 | AP26: 0 | AQ26: 0.0216 | AR26: 0.01454581734
A27: Rear Gardens, Snell Hatch/Ifield Road | B27: N/A | E27: 0.487130115 | F27: 0.49 | G27: 0 | H27: 0 | I27: 0 | J27: 0 | K27: 0 | L27: 0 | M27: 0 | N27: 0 | O27: 0 | P27: 0 | Q27: 0 | R27: 1 | S27: 0 | T27: 0 | U27: 0 | V27: 0 | W27: 0 | X27: 0 | Y27: 0.00700115245 | Z27: 0.01437224313 | AA27: 0.01437224313 | AB27: 0.03607212747 | AC27: 0.07405029242 | AD27: 0.07405029242 | AE27: 0 | AF27: 0 | AG27: 0 | AH27: 0 | AI27: 0 | AJ27: 0 | AK27: 0 | AL27: 0 | AM27: 0 | AN27: 0 | AO27: 0.0093391978 | AP27: 0.01917187526 | AQ27: 0.01073899219 | AR27: 0.02204542864
A28: Sutherland House (Eastern Section) | B28: N/A | E28: 0.9086492997 | F28: 0.91 | G28: 0 | H28: 0 | I28: 0 | J28: 0 | K28: 0 | L28: 0 | M28: 0 | N28: 0 | O28: 0 | P28: 0 | Q28: 0 | R28: 1 | S28: 0 | T28: 0 | U28: 0 | V28: 0 | W28: 0 | X28: 0 | Y28: 0 | Z28: 0 | AA28: 0 | AB28: 0.07237715175 | AC28: 0.07965356026 | AD28: 0.07965356026 | AE28: 0 | AF28: 0 | AG28: 0 | AH28: 0 | AI28: 0 | AJ28: 0 | AK28: 0 | AL28: 0 | AM28: 0 | AN28: 0 | AO28: 0.0001518200001 | AP28: 0.0001670831641 | AQ28: 0.01046807175 | AR28: 0.01152047523
A29: Land to the southeast of Heathy Farm | B29: N/A | E29: 2.220972212 | F29: 2.22 | G29: 0 | H29: 0 | I29: 0 | J29: 0 | K29: 0 | L29: 0 | M29: 0 | N29: 0 | O29: 0 | P29: 0 | Q29: 0 | R29: 1 | S29: 0 | T29: 0 | U29: 0 | V29: 0 | W29: 0 | X29: 0 | Y29: 1.007237008e-06 | Z29: 4.53511756e-07 | AA29: 4.53511756e-07 | AB29: 0.01673044375 | AC29: 0.007532937002 | AD29: 0.007532937002 | AE29: 0 | AF29: 0 | AG29: 0 | AH29: 0 | AI29: 0 | AJ29: 0 | AK29: 0 | AL29: 0 | AM29: 0 | AN29: 0 | AO29: 1.007237008e-06 | AP29: 4.53511756e-07 | AQ29: 0.00344747609 | AR29: 0.001552237381
A30: 21, 25, 27 & 29 Tushmore Lane | B30: N/A | E30: 0.6001534455 | F30: 0.6 | G30: 0 | H30: 0 | I30: 0 | J30: 0 | K30: 0 | L30: 0 | M30: 0 | N30: 0.3788209344 | O30: 0.38 | P30: 0.6333333333 | Q30: 0.6333333333 | R30: 0.3666666667 | S30: 0 | T30: 0 | U30: 0 | V30: 0 | W30: 0 | X30: 0 | Y30: 0.04115560737 | Z30: 0.06857514138 | AA30: 0.06857514138 | AB30: 0.3502893344 | AC30: 0.583666289 | AD30: 0.583666289 | AE30: 0 | AF30: 0 | AG30: 0 | AH30: 0 | AI30: 0 | AJ30: 0 | AK30: 0 | AL30: 0 | AM30: 0.032599025 | AN30: 0.05431781696 | AO30: 0.09021486416 | AP30: 0.1503196638 | AQ30: 0.1323016442 | AR30: 0.2204463628
A31: Brittingham House | B31: N/A | E31: 0.1310322361 | F31: 0.13 | G31: 0 | H31: 0 | I31: 0 | J31: 0 | K31: 0 | L31: 0 | M31: 0 | N31: 0 | O31: 0 | P31: 0 | Q31: 0 | R31: 1 | S31: 0 | T31: 0 | U31: 0 | V31: 0 | W31: 0 | X31: 0 | Y31: 0 | Z31: 0 | AA31: 0 | AB31: 0.0006932537501 | AC31: 0.005290711438 | AD31: 0.005290711438 | AE31: 0 | AF31: 0 | AG31: 0 | AH31: 0 | AI31: 0 | AJ31: 0 | AK31: 0 | AL31: 0 | AM31: 0 | AN31: 0 | AO31: 0 | AP31: 0 | AQ31: 0 | AR31: 0
A32: Crawley College | B32: N/A | E32: 3.413916146 | F32: 3.41 | G32: 0 | H32: 0 | I32: 0 | J32: 0 | K32: 0 | L32: 0 | M32: 0 | N32: 0 | O32: 0 | P32: 0 | Q32: 0 | R32: 1 | S32: 0 | T32: 0 | U32: 0 | V32: 0 | W32: 0.2915030047 | X32: 0.0853866915 | Y32: 0.6617489231 | Z32: 0.1938386577 | AA32: 0.1938386577 | AB32: 1.477693375 | AC32: 0.4328440747 | AD32: 0.4328440747 | AE32: 0 | AF32: 0 | AG32: 0 | AH32: 0 | AI32: 0 | AJ32: 0 | AK32: 0 | AL32: 0 | AM32: 0 | AN32: 0 | AO32: 0.8650059151 | AP32: 0.2533764387 | AQ32: 1.002252558 | AR32: 0.2935785518
A33: Telford Place | B33: N/A | E33: 1.738083799 | F33: 1.74 | G33: 0 | H33: 0 | I33: 0 | J33: 0 | K33: 0 | L33: 0 | M33: 0 | N33: 0 | O33: 0 | P33: 0 | Q33: 0 | R33: 1 | S33: 0 | T33: 0 | U33: 0 | V33: 0 | W33: 0.0424591583 | X33: 0.0244287176 | Y33: 0.1141545379 | Z33: 0.06567838557 | AA33: 0.06567838557 | AB33: 0.341583859 | AC33: 0.1965289931 | AD33: 0.1965289931 | AE33: 0 | AF33: 0 | AG33: 0 | AH33: 0 | AI33: 0 | AJ33: 0 | AK33: 0 | AL33: 0 | AM33: 0 | AN33: 0 | AO33: 0.1711172823 | AP33: 0.09845168707 | AQ33: 0.2111235335 | AR33: 0.1214691338
A34: Former TSB Site | B34: N/A | E34: 0.4941188487 | F34: 0.49 | G34: 0 | H34: 0 | I34: 0 | J34: 0 | K34: 0 | L34: 0 | M34: 0 | N34: 0 | O34: 0 | P34: 0 | Q34: 0 | R34: 1 | S34: 0 | T34: 0 | U34: 0 | V34: 0 | W34: 0 | X34: 0 | Y34: 0.0528 | Z34: 0.106856883 | AA34: 0.106856883 | AB34: 0.1887339609 | AC34: 0.3819606586 | AD34: 0.3819606586 | AE34: 0 | AF34: 0 | AG34: 0 | AH34: 0 | AI34: 0 | AJ34: =AI34/E34 -> 0 | AK34: 0 | AL34: =AK34/E34 -> 0 | AM34: 0 | AN34: =AM34/E34 -> 0 | AO34: 0.0704 | AP34: =AO34/E34 -> 0.142475844 | AQ34: 0.08294008 | AR34: =AQ34/E34 -> 0.1678545156
A35: 7 - 13 The Broadway & 1 - 3 Queens Square | B35: N/A | E35: 0.09079907352 | F35: 0.09 | G35: 0 | H35: 0 | I35: 0 | J35: 0 | K35: 0 | L35: 0 | M35: 0 | N35: 0 | O35: 0 | P35: 0 | Q35: 0 | R35: 1 | S35: 0 | T35: 0 | U35: 0 | V35: 0 | W35: 0 | X35: 0 | Y35: 0 | Z35: 0 | AA35: 0 | AB35: 0.002616678494 | AC35: 0.02881833914 | AD35: 0.02881833914 | AE35: 0 | AF35: 0 | AG35: 0 | AH35: 0 | AI35: 0 | AJ35: 0 | AK35: 0 | AL35: 0 | AM35: 0 | AN35: 0 | AO35: 0 | AP35: 0 | AQ35: 0 | AR35: 0
A36: Breezehurst Drive Playing Fields | B36: N/A | E36: 2.737266192 | F36: 2.74 | G36: 0.01271191261 | H36: 0.01 | I36: 0.003649635036 | J36: 0.01271191261 | K36: 0.01 | L36: 0.003649635036 | M36: 0 | N36: 0.01271191261 | O36: 0.01 | P36: 0.003649635036 | Q36: 0 | R36: 0.996350365 | S36: 0 | T36: 0 | U36: 0 | V36: 0 | W36: 0 | X36: 0 | Y36: 0 | Z36: 0 | AA36: 0 | AB36: 0 | AC36: 0 | AD36: 0 | AE36: 0 | AF36: 0 | AG36: 0 | AH36: 0 | AI36: 0.01271191261 | AJ36: 0.004644017687 | AK36: 0.01271191261 | AL36: 0.004644017687 | AM36: 0.01271178133 | AN36: 0.004643969729 | AO36: 0 | AP36: 0 | AQ36: 0 | AR36: 0
A37: Land to the southeast of Heathy Farm | B37: N/A | E37: 2.108410428 | F37: 2.11 | G37: 0 | H37: 0 | I37: 0 | J37: 0 | K37: 0 | L37: 0 | M37: 0 | N37: 0 | O37: 0 | P37: 0 | Q37: 0 | R37: 1 | S37: 0 | T37: 0 | U37: 0 | V37: 0 | W37: 0 | X37: 0 | Y37: 0.00046848 | Z37: 0.0002221958276 | AA37: 0.0002221958276 | AB37: 0.0768205371 | AC37: 0.03643528607 | AD37: 0.03643528607 | AE37: 0 | AF37: 0 | AG37: 0 | AH37: 0 | AI37: 0 | AJ37: 0 | AK37: 0 | AL37: 0 | AM37: 0 | AN37: 0 | AO37: 0.004072737819 | AP37: 0.001931662719 | AQ37: 0.005152721538 | AR37: 0.00244388923
A38: Land Adjacent to Desmond Anderson | B38: N/A | E38: 3.515163417 | F38: 3.52 | G38: 0.1084761484 | H38: 0.11 | I38: 0.03125 | J38: 0.6425999095 | K38: 0.64 | L38: 0.1818181818 | M38: 0.1505681818 | N38: 0.7646975547 | O38: 0.76 | P38: 0.2159090909 | Q38: 0.03409090909 | R38: 0.7840909091 | S38: 0 | T38: 0 | U38: 0 | V38: 0 | W38: 0.05654847539 | X38: 0.0160870118 | Y38: 0.1195897537 | Z38: 0.03402110784 | AA38: 0.03402110784 | AB38: 0.5205838638 | AC38: 0.1480966322 | AD38: 0.1480966322 | AE38: 0 | AF38: 0 | AG38: 0 | AH38: 0 | AI38: 0.7260774645 | AJ38: 0.2065558207 | AK38: 0.7381139306 | AL38: 0.2099799762 | AM38: 0.7540691421 | AN38: 0.2145189434 | AO38: 0.187006494 | AP38: 0.05319994316 | AQ38: 0.2274060011 | AR38: 0.06469286748
A39: Henty Close | B39: N/A | E39: 0.3518277459 | F39: 0.35 | G39: 0.04093157295 | H39: 0.04 | I39: 0.1142857143 | J39: 0.04093157295 | K39: 0.04 | L39: 0.1142857143 | M39: 0 | N39: 0.04093157295 | O39: 0.04 | P39: 0.1142857143 | Q39: 0 | R39: 0.8857142857 | S39: 0 | T39: 0 | U39: 0 | V39: 0 | W39: 0.003055384978 | X39: 0.008684320703 | Y39: 0.003323805087 | Z39: 0.009447251176 | AA39: 0.009447251176 | AB39: 0.01853645408 | AC39: 0.05268616331 | AD39: 0.05268616331 | AE39: 0 | AF39: 0 | AG39: 0 | AH39: 0 | AI39: 0.04093157295 | AJ39: 0.1163398095 | AK39: 0.04093157295 | AL39: 0.1163398095 | AM39: 0.04093157719 | AN39: 0.1163398216 | AO39: 0.004129707716 | AP39: 0.01173786822 | AQ39: 0.005368350576 | AR39: 0.01525846281
A40: 257 - 259 Ifield Road | B40: N/A | E40: 0.1155171778 | F40: 0.12 | G40: 0 | H40: 0 | I40: 0 | J40: 0 | K40: 0 | L40: 0 | M40: 0 | N40: 0 | O40: 0 | P40: 0 | Q40: 0 | R40: 1 | S40: 0 | T40: 0 | U40: 0 | V40: 0 | W40: 0.05754132262 | X40: 0.4981191862 | Y40: 0.07075758464 | Z40: 0.6125286817 | AA40: 0.6125286817 | AB40: 0.09679140401 | AC40: 0.8378961972 | AD40: 0.8378961972 | AE40: 0 | AF40: 0 | AG40: 0 | AH40: 0 | AI40: 0 | AJ40: 0 | AK40: 0 | AL40: 0 | AM40: 0 | AN40: 0 | AO40: 0.08275946877 | AP40: 0.7164256462 | AQ40: 0.08713506544 | AR40: 0.7543039665
A41: Tinsley Lane Playing Fields | B41: N/A | E41: 5.9747307 | F41: 5.97 | G41: 0 | H41: 0 | I41: 0 | J41: 0 | K41: 0 | L41: 0 | M41: 0 | N41: 0 | O41: 0 | P41: 0 | Q41: 0 | R41: 1 | S41: 0 | T41: 0 | U41: 0 | V41: 0 | W41: 0 | X41: 0 | Y41: 0 | Z41: 0 | AA41: 0 | AB41: 0 | AC41: 0 | AD41: 0 | AE41: 0 | AF41: 0 | AG41: 0 | AH41: 0 | AI41: 0 | AJ41: 0 | AK41: 0 | AL41: 0 | AM41: 0 | AN41: 0 | AO41: 0 | AP41: 0 | AQ41: 0 | AR41: 0
A42: Stoner House | B42: N/A | E42: 0.4234570907 | F42: 0.42 | G42: 0 | H42: 0 | I42: 0 | J42: 0 | K42: 0 | L42: 0 | M42: 0 | N42: 0 | O42: 0 | P42: 0 | Q42: 0 | R42: 1 | S42: 0 | T42: 0 | U42: 0 | V42: 0 | W42: 0.05248137462 | X42: 0.1239355197 | Y42: 0.06725007099 | Z42: 0.1588120083 | AA42: 0.1588120083 | AB42: 0.2290934321 | AC42: 0.5410074292 | AD42: 0.5410074292 | AE42: 0 | AF42: 0 | AG42: 0 | AH42: 0 | AI42: 0 | AJ42: 0 | AK42: 0 | AL42: 0 | AM42: 0 | AN42: 0 | AO42: 0.09063125085 | AP42: 0.2140270002 | AQ42: 0.1082383095 | AR42: 0.2556063221
A43: 1 - 7 Pegler Way | B43: N/A | E43: 0.124046058 | F43: 0.12 | G43: 0 | H43: 0 | I43: 0 | J43: 0 | K43: 0 | L43: 0 | M43: 0 | N43: 0 | O43: 0 | P43: 0 | Q43: 0 | R43: 1 | S43: 0 | T43: 0 | U43: 0 | V43: 0 | W43: 0.0108 | X43: 0.08706443539 | Y43: 0.01422975085 | Z43: 0.1147134466 | AA43: 0.1147134466 | AB43: 0.02043149477 | AC43: 0.1647089404 | AD43: 0.1647089404 | AE43: 0 | AF43: 0 | AG43: 0 | AH43: 0 | AI43: 0 | AJ43: 0 | AK43: 0 | AL43: 0 | AM43: 0 | AN43: 0 | AO43: 0.0147256996 | AP43: 0.1187115483 | AQ43: 0.0155256996 | AR43: 0.1251607657
A44: Longley Building | B44: N/A | E44: 0.486472435 | F44: 0.49 | G44: 0 | H44: 0 | I44: 0 | J44: 0 | K44: 0 | L44: 0 | M44: 0 | N44: 0 | O44: 0 | P44: 0 | Q44: 0 | R44: 1 | S44: 0 | T44: 0 | U44: 0 | V44: 0 | W44: 0 | X44: 0 | Y44: 0.00716308 | Z44: 0.01472453419 | AA44: 0.01472453419 | AB44: 0.02491676 | AC44: 0.05121926384 | AD44: 0.05121926384 | AE44: 0 | AF44: 0 | AG44: 0 | AH44: 0 | AI44: 0 | AJ44: 0 | AK44: 0 | AL44: 0 | AM44: 0 | AN44: 0 | AO44: 0.01036308 | AP44: 0.02130250196 | AQ44: 0.01196308 | AR44: 0.02459148585
A45: Land North of the Boulevard | B45: N/A | E45: 1.289238585 | F45: 1.29 | G45: 0 | H45: 0 | I45: 0 | J45: 0 | K45: 0 | L45: 0 | M45: 0 | N45: 0 | O45: 0 | P45: 0 | Q45: 0 | R45: 1 | S45: 0 | T45: 0 | U45: 0 | V45: 0 | W45: 0 | X45: 0 | Y45: 0.02699798 | Z45: 0.02094102699 | AA45: 0.02094102699 | AB45: 0.07280579262 | AC45: 0.05647193118 | AD45: 0.05647193118 | AE45: 0 | AF45: 0 | AG45: 0 | AH45: 0 | AI45: 0 | AJ45: 0 | AK45: 0 | AL45: 0 | AM45: 0 | AN45: 0 | AO45: 0.03832294 | AP45: 0.02972525059 | AQ45: 0.04314274 | AR45: 0.03346373628
A46: Crawley Station and Car Parks | B46: N/A | E46: 2.044335464 | F46: 2.04 | G46: 0 | H46: 0 | I46: 0 | J46: 0 | K46: 0 | L46: 0 | M46: 0 | N46: 0 | O46: 0 | P46: 0 | Q46: 0 | R46: 1 | S46: 0 | T46: 0 | U46: 0 | V46: 0 | W46: 0.1273960949 | X46: 0.06231662912 | Y46: 0.3898205709 | Z46: 0.1906832698 | AA46: 0.1906832698 | AB46: 0.9941551963 | AC46: 0.4862974858 | AD46: 0.4862974858 | AE46: 0 | AF46: 0 | AG46: 0 | AH46: 0 | AI46: 0 | AJ46: 0 | AK46: 0 | AL46: 0 | AM46: 0 | AN46: 0 | AO46: 0.5039293355 | AP46: 0.2465003148 | AQ46: 0.6119250326 | AR46: 0.299327113
A47: Ocean House | B47: N/A | E47: 0.1675561975 | F47: 0.17 | G47: 0.1613010182 | H47: 0.16 | I47: 0.9411764706 | J47: 0.1675561975 | K47: 0.17 | L47: 1 | M47: 0.05882352941 | N47: 0.1675561975 | O47: 0.17 | P47: 1 | Q47: 0 | R47: 0 | S47: 0 | T47: 0.1675561975 | U47: 1 | V47: 0 | W47: 0 | X47: 0 | Y47: 0 | Z47: 0 | AA47: 0 | AB47: 0.0857093598 | AC47: 0.5115260497 | AD47: 0.5115260497 | AE47: 0 | AF47: 0 | AG47: 0 | AH47: 0 | AI47: 0.1675561975 | AJ47: 1 | AK47: 0.1675561975 | AL47: 1 | AM47: 0.1675561975 | AN47: 1 | AO47: 0 | AP47: 0 | AQ47: 0.01387555092 | AR47: 0.08281132615
A48: Land East of Balcombe Road/Street Hill | B48: N/A | E48: 1.754505798 | F48: 1.75 | G48: 0.02366900724 | H48: 0.02 | I48: 0.01142857143 | J48: 0.02460408476 | K48: 0.02 | L48: 0.01142857143 | M48: 0 | N48: 0.03917682143 | O48: 0.04 | P48: 0.02285714286 | Q48: 0.01142857143 | R48: 0.9771428571 | S48: 0 | T48: 0 | U48: 0 | V48: 0 | W48: 0.07781538757 | X48: 0.04435174149 | Y48: 0.1002519058 | Z48: 0.05713968339 | AA48: 0.05713968339 | AB48: 0.1866943107 | AC48: 0.1064084889 | AD48: 0.1064084889 | AE48: 0 | AF48: 0 | AG48: 0 | AH48: 0 | AI48: 0.02801885847 | AJ48: 0.01596965853 | AK48: 0.02917788786 | AL48: 0.01663026016 | AM48: 0.03653618095 | AN48: 0.02082420075 | AO48: 0.1199288428 | AP48: 0.06835477145 | AQ48: 0.1332581366 | AR48: 0.07595195001
A49: Rear Gardens, Dingle Close/Ifield Road | B49: N/A | E49: 0.7162954015 | F49: 0.72 | G49: 0 | H49: 0 | I49: 0 | J49: 0 | K49: 0 | L49: 0 | M49: 0 | N49: 0 | O49: 0 | P49: 0 | Q49: 0 | R49: 1 | S49: 0 | T49: 0 | U49: 0 | V49: 0 | W49: 0 | X49: 0 | Y49: 0.00061996825 | Z49: 0.0008655203547 | AA49: 0.0008655203547 | AB49: 0.01047249059 | AC49: 0.01462035156 | AD49: 0.01462035156 | AE49: 0 | AF49: 0 | AG49: 0 | AH49: 0 | AI49: 0 | AJ49: 0 | AK49: 0 | AL49: 0 | AM49: 0 | AN49: 0 | AO49: 0.00243483825 | AP49: 0.003399209662 | AQ49: 0.00391828125 | AR49: 0.005470202994
A50: The Imperial | B50: N/A | E50: 0.104702495 | F50: 0.1 | G50: 0 | H50: 0 | I50: 0 | J50: 0 | K50: 0 | L50: 0 | M50: 0 | N50: 0 | O50: 0 | P50: 0 | Q50: 0 | R50: 1 | S50: 0 | T50: 0 | U50: 0 | V50: 0 | W50: 0 | X50: 0 | Y50: 3.898004999e-05 | Z50: 0.0003722934204 | AA50: 0.0003722934204 | AB50: 0.02858156625 | AC50: 0.2729788459 | AD50: 0.2729788459 | AE50: 0 | AF50: 0 | AG50: 0 | AH50: 0 | AI50: 0 | AJ50: 0 | AK50: 0 | AL50: 0 | AM50: 0 | AN50: 0 | AO50: 0.01282472005 | AP50: 0.122487244 | AQ50: 0.01906283955 | AR50: 0.1820667172
A51: 9 Woolborough Road | B51: N/A | E51: 0.1390857291 | F51: 0.14 | G51: 0 | H51: 0 | I51: 0 | J51: 0 | K51: 0 | L51: 0 | M51: 0 | N51: 0 | O51: 0 | P51: 0 | Q51: 0 | R51: 1 | S51: 0 | T51: 0 | U51: 0 | V51: 0 | W51: 0 | X51: 0 | Y51: 3.439843452e-05 | Z51: 0.0002473182169 | AA51: 0.0002473182169 | AB51: 0.0073311161 | AC51: 0.05270933364 | AD51: 0.05270933364 | AE51: 0 | AF51: 0 | AG51: 0 | AH51: 0 | AI51: 0 | AJ51: 0 | AK51: 0 | AL51: 0 | AM51: 0 | AN51: 0 | AO51: 0.0006792994719 | AP51: 0.004884034302 | AQ51: 0.001934364871 | AR51: 0.01390771637
A52: Ambulance Station | B52: N/A | E52: 0.43019916 | F52: 0.43 | G52: 0 | H52: 0 | I52: 0 | J52: 0 | K52: 0 | L52: 0 | M52: 0 | N52: 0 | O52: 0 | P52: 0 | Q52: 0 | R52: 1 | S52: 0 | T52: 0 | U52: 0 | V52: 0 | W52: 0 | X52: 0 | Y52: 0 | Z52: 0 | AA52: 0 | AB52: 9.92864695e-05 | AC52: 0.0002307918721 | AD52: 0.0002307918721 | AE52: 0 | AF52: 0 | AG52: 0 | AH52: 0 | AI52: 0 | AJ52: 0 | AK52: 0 | AL52: 0 | AM52: 0 | AN52: 0 | AO52: 0 | AP52: 0 | AQ52: 9.956442498e-06 | AR52: 2.314379809e-05
A53: Fire Station | B53: N/A | E53: 0.4454323115 | F53: 0.45 | G53: 0 | H53: 0 | I53: 0 | J53: 0 | K53: 0 | L53: 0 | M53: 0 | N53: 0 | O53: 0 | P53: 0 | Q53: 0 | R53: 1 | S53: 0 | T53: 0 | U53: 0 | V53: 0 | W53: 0.07176585372 | X53: 0.1611150603 | Y53: 0.2169114068 | Z53: 0.4869682805 | AA53: 0.4869682805 | AB53: 0.3766332712 | AC53: 0.8455454655 | AD53: 0.8455454655 | AE53: 0 | AF53: 0 | AG53: 0 | AH53: 0 | AI53: 0 | AJ53: 0 | AK53: 0 | AL53: 0 | AM53: 0 | AN53: 0 | AO53: 0.2855251574 | AP53: 0.6410068376 | AQ53: 0.3304672711 | AR53: 0.7419023329
A54: Goffs Park Depot | B54: N/A | E54: 0.9389216945 | F54: 0.94 | G54: 0 | H54: 0 | I54: 0 | J54: 0 | K54: 0 | L54: 0 | M54: 0 | N54: 0 | O54: 0 | P54: 0 | Q54: 0 | R54: 1 | S54: 0 | T54: 0 | U54: 0 | V54: 0 | W54: 0 | X54: 0 | Y54: 0.0116 | Z54: 0.0123545979 | AA54: 0.0123545979 | AB54: 0.0196 | AC54: 0.02087501025 | AD54: 0.02087501025 | AE54: 0 | AF54: 0 | AG54: 0 | AH54: 0 | AI54: 0 | AJ54: 0 | AK54: 0 | AL54: 0 | AM54: 0 | AN54: 0 | AO54: 0.0128 | AP54: 0.01363265976 | AQ54: 0.0144 | AR54: 0.01533674223
A55: Forge Wood | B55: N/A | E55: 172.7916084 | F55: 172.79 | G55: 5.71231383 | H55: 5.71 | I55: 0.03304589386 | J55: 17.66056495 | K55: 17.66 | L55: 0.1022049887 | M55: 0.06915909486 | N55: 23.36911956 | O55: 23.37 | P55: 0.1352508826 | Q55: 0.03304589386 | R55: 0.8647491174 | S55: 0 | T55: 5.614030837 | U55: 0.03249018218 | V55: 0 | W55: 3.541507539 | X55: 0.02049583062 | Y55: 6.141917452 | Z55: 0.03554522993 | AA55: 0.03554522993 | AB55: 19.69805584 | AC55: 0.1139989148 | AD55: 0.1139989148 | AE55: 0 | AF55: 0 | AG55: 0.032019225 | AH55: 0.0001853054399 | AI55: 19.60393095 | AJ55: 0.1134541841 | AK55: 20.31535266 | AL55: 0.1175714078 | AM55: 21.71875726 | AN55: 0.1256933566 | AO55: 8.218583646 | AP55: 0.04756355775 | AQ55: 10.58438871 | AR55: 0.06125522417
A56: St. Catherine's Hospice | B56: N/A | E56: 0.7292069677 | F56: 0.73 | G56: 0 | H56: 0 | I56: 0 | J56: 0 | K56: 0 | L56: 0 | M56: 0 | N56: 0 | O56: 0 | P56: 0 | Q56: 0 | R56: 1 | S56: 0 | T56: 0 | U56: 0 | V56: 0 | W56: 0.0116 | X56: 0.01590769221 | Y56: 0.016 | Z56: 0.02194164443 | AA56: 0.02194164443 | AB56: 0.03827167 | AC56: 0.05248396093 | AD56: 0.05248396093 | AE56: 0 | AF56: 0 | AG56: 0 | AH56: 0 | AI56: 0 | AJ56: 0 | AK56: 0 | AL56: 0 | AM56: 0 | AN56: 0 | AO56: 0.0164 | AP56: 0.02249018554 | AQ56: 0.0164 | AR56: 0.02249018554
A57: Rushetts Road Play Area | B57: N/A | E57: 0.4163362941 | F57: 0.42 | G57: 0 | H57: 0 | I57: 0 | J57: 0 | K57: 0 | L57: 0 | M57: 0 | N57: 0 | O57: 0 | P57: 0 | Q57: 0 | R57: 1 | S57: 0 | T57: 0 | U57: 0 | V57: 0 | W57: 0 | X57: 0 | Y57: 0 | Z57: 0 | AA57: 0 | AB57: 0.02713458643 | AC57: 0.06517468407 | AD57: 0.06517468407 | AE57: 0 | AF57: 0 | AG57: 0 | AH57: 0 | AI57: 0 | AJ57: 0 | AK57: 0 | AL57: 0 | AM57: 0 | AN57: 0 | AO57: 0 | AP57: 0 | AQ57: 0.0164079912 | AR57: 0.03941042719
A58: Land S/O and R/O 24 Brighton Road | B58: N/A | E58: 0.269177732 | F58: 0.27 | G58: 0 | H58: 0 | I58: 0 | J58: 0 | K58: 0 | L58: 0 | M58: 0 | N58: 0 | O58: 0 | P58: 0 | Q58: 0 | R58: 1 | S58: 0 | T58: 0 | U58: 0 | V58: 0 | W58: 0 | X58: 0 | Y58: 0 | Z58: 0 | AA58: 0 | AB58: 0.0005948434999 | AC58: 0.002209854045 | AD58: 0.002209854045 | AE58: 0 | AF58: 0 | AG58: 0 | AH58: 0 | AI58: 0 | AJ58: 0 | AK58: 0 | AL58: 0 | AM58: 0 | AN58: 0 | AO58: 0 | AP58: 0 | AQ58: 0 | AR58: 0
A59: Moka | B59: N/A | E59: 0.378786374 | F59: 0.38 | G59: 0 | H59: 0 | I59: 0 | J59: 0 | K59: 0 | L59: 0 | M59: 0 | N59: 0 | O59: 0 | P59: 0 | Q59: 0 | R59: 1 | S59: 0 | T59: 0 | U59: 0 | V59: 0 | W59: 0 | X59: 0 | Y59: 0.0001127325756 | Z59: 0.0002976151818 | AA59: 0.0002976151818 | AB59: 0.003523892609 | AC59: 0.009303113447 | AD59: 0.009303113447 | AE59: 0 | AF59: 0 | AG59: 0 | AH59: 0 | AI59: 0 | AJ59: 0 | AK59: 0 | AL59: 0 | AM59: 0 | AN59: 0 | AO59: 0.0001127325756 | AP59: 0.0002976151818 | AQ59: 0.0002955908987 | AR59: 0.0007803630728
A60: Kilnmead Car Park | B60: N/A | E60: 0.5038955383 | F60: 0.5 | G60: 0 | H60: 0 | I60: 0 | J60: 0 | K60: 0 | L60: 0 | M60: 0 | N60: 0 | O60: 0 | P60: 0 | Q60: 0 | R60: 1 | S60: 0 | T60: 0 | U60: 0 | V60: 0 | W60: 0 | X60: 0 | Y60: 0 | Z60: 0 | AA60: 0 | AB60: 0 | AC60: 0 | AD60: 0 | AE60: 0 | AF60: 0 | AG60: 0 | AH60: 0 | AI60: 0 | AJ60: 0 | AK60: 0 | AL60: 0 | AM60: 0 | AN60: 0 | AO60: 0 | AP60: 0 | AQ60: 0 | AR60: 0
A61: The Old Vicarage, Church Walk (Cross Keys) | B61: N/A | E61: 0.249822908 | F61: 0.25 | G61: 0 | H61: 0 | I61: 0 | J61: 0 | K61: 0 | L61: 0 | M61: 0 | N61: 0 | O61: 0 | P61: 0 | Q61: 0 | R61: 1 | S61: 0 | T61: 0 | U61: 0 | V61: 0 | W61: 0 | X61: 0 | Y61: 0.02490044 | Z61: 0.09967236472 | AA61: 0.09967236472 | AB61: 0.1192704226 | AC61: 0.4774198794 | AD61: 0.4774198794 | AE61: 0 | AF61: 0 | AG61: 0 | AH61: 0 | AI61: 0 | AJ61: 0 | AK61: 0 | AL61: 0 | AM61: 0 | AN61: 0 | AO61: 0.05212754974 | AP61: 0.2086580056 | AQ61: 0.07311950419 | AR61: 0.2926853457
A62: Harwood. Blaxley and Forest Way, Balcombe Road | B62: N/A | E62: 0.730935095 | F62: 0.73 | G62: 0 | H62: 0 | I62: 0 | J62: 0 | K62: 0 | L62: 0 | M62: 0 | N62: 0 | O62: 0 | P62: 0 | Q62: 0 | R62: 1 | S62: 0 | T62: 0 | U62: 0 | V62: 0 | W62: 0 | X62: 0 | Y62: 0.027121361 | Z62: 0.03710501956 | AA62: 0.03710501956 | AB62: 0.1229054689 | AC62: 0.1681482661 | AD62: 0.1681482661 | AE62: 0 | AF62: 0 | AG62: 0 | AH62: 0 | AI62: 0 | AJ62: 0 | AK62: 0 | AL62: 0 | AM62: 0 | AN62: 0 | AO62: 0.0475949705 | AP62: 0.0651151803 | AQ62: 0.08129223367 | AR62: 0.1112167609
A63: 96 – 102 North Road | B63: N/A | E63: 0.360545775 | F63: 0.36 | G63: 0 | H63: 0 | I63: 0 | J63: 0 | K63: 0 | L63: 0 | M63: 0 | N63: 0 | O63: 0 | P63: 0 | Q63: 0 | R63: 1 | S63: 0 | T63: 0 | U63: 0 | V63: 0 | W63: 0 | X63: 0 | Y63: 0.0075110086 | Z63: 0.0208323301 | AA63: 0.0208323301 | AB63: 0.02097549495 | AC63: 0.05817706489 | AD63: 0.05817706489 | AE63: 0 | AF63: 0 | AG63: 0 | AH63: 0 | AI63: 0 | AJ63: 0 | AK63: 0 | AL63: 0 | AM63: 0 | AN63: 0 | AO63: 0.0099166631 | AP63: 0.02750458829 | AQ63: 0.0110541941 | AR63: 0.03065961347
A64: 46 – 48 Goffs Park Road | B64: N/A | E64: 0.278305065 | F64: 0.28 | G64: 0 | H64: 0 | I64: 0 | J64: 0 | K64: 0 | L64: 0 | M64: 0 | N64: 0 | O64: 0 | P64: 0 | Q64: 0 | R64: 1 | S64: 0 | T64: 0 | U64: 0 | V64: 0 | W64: 0 | X64: 0 | Y64: 0 | Z64: 0 | AA64: 0 | AB64: 0 | AC64: 0 | AD64: 0 | AE64: 0 | AF64: 0 | AG64: 0 | AH64: 0 | AI64: 0 | AJ64: 0 | AK64: 0 | AL64: 0 | AM64: 0 | AN64: 0 | AO64: 0 | AP64: 0 | AQ64: 0 | AR64: 0
A65: 40 Springfield Road | B65: N/A | E65: 0.06191037627 | F65: 0.06 | G65: 0 | H65: 0 | I65: 0 | J65: 0 | K65: 0 | L65: 0 | M65: 0 | N65: 0 | O65: 0 | P65: 0 | Q65: 0 | R65: 1 | S65: 0 | T65: 0 | U65: 0 | V65: 0 | W65: 0 | X65: 0 | Y65: 0 | Z65: 0 | AA65: 0 | AB65: 0 | AC65: 0 | AD65: 0 | AE65: 0 | AF65: 0 | AG65: 0 | AH65: 0 | AI65: 0 | AJ65: 0 | AK65: 0 | AL65: 0 | AM65: 0 | AN65: 0 | AO65: 0 | AP65: 0 | AQ65: 0 | AR65: 0
A66: 34-38 & 40, the Broadway | B66: N/A | E66: 0.1149295675 | F66: 0.11 | G66: 0 | H66: 0 | I66: 0 | J66: 0 | K66: 0 | L66: 0 | M66: =L66-I66 -> 0 | N66: 0 | O66: 0 | P66: 0 | Q66: 0 | R66: 1 | S66: 0 | T66: 0 | U66: =T66/E66 -> 0 | V66: 0 | W66: 0 | X66: =W66/E66 -> 0 | Y66: 0 | Z66: =Y66/E66 -> 0 | AA66: =Y66/E66 -> 0 | AB66: 0.042590236 | AC66: =AB66/E66 -> 0.3705768404 | AD66: =AB66/E66 -> 0.3705768404 | AE66: 0 | AF66: 0 | AG66: 0 | AH66: 0 | AI66: 0 | AJ66: =AI66/E66 -> 0 | AK66: 0 | AL66: =AK66/E66 -> 0 | AM66: 0 | AN66: =AM66/E66 -> 0 | AO66: 0 | AP66: =AO66/E66 -> 0 | AQ66: 0 | AR66: =AQ66/E66 -> 0
A67: 48 the Broadway | B67: N/A | E67: 0.03100372231 | F67: =ROUND(E67,2) -> 0.03 | G67: 0 | H67: =ROUND(G67,2) -> 0 | I67: =H67/F67 -> 0 | J67: 0 | K67: =ROUND(J67,2) -> 0 | L67: =K67/F67 -> 0 | M67: 0 | N67: 0 | O67: =ROUND(N67,2) -> 0 | P67: =O67/F67 -> 0 | Q67: =P67-L67 -> 0 | R67: =1-P67 -> 1 | S67: 0 | T67: 0 | U67: 0 | V67: 0 | W67: 0 | X67: 0 | Y67: 0 | Z67: 0 | AA67: 0 | AB67: 0.00274338075 | AC67: 0.08848552837 | AD67: 0.08848552837 | AE67: 0 | AF67: =AE67/E67 -> 0 | AG67: 0 | AH67: =AG67/E67 -> 0 | AI67: 0 | AJ67: 0 | AK67: 0 | AL67: 0 | AM67: 0 | AN67: 0 | AO67: 0 | AP67: 0 | AQ67: 0.0004013505001 | AR67: 0.01294523593
A68: Land R/O the George Hotel | B68: N/A | E68: 0.3070277108 | F68: 0.31 | G68: 0 | H68: 0 | I68: 0 | J68: 0 | K68: 0 | L68: 0 | M68: 0 | N68: 0 | O68: 0 | P68: 0 | Q68: 0 | R68: 1 | S68: 0 | T68: 0 | U68: 0 | V68: 0 | W68: 0 | X68: 0 | Y68: 0.01715825665 | Z68: 0.05588504245 | AA68: 0.05588504245 | AB68: 0.0330820269 | AC68: 0.1077493195 | AD68: 0.1077493195 | AE68: 0 | AF68: 0 | AG68: 0 | AH68: 0 | AI68: 0 | AJ68: 0 | AK68: 0 | AL68: 0 | AM68: 0 | AN68: 0 | AO68: 0.01915825665 | AP68: 0.06239911245 | AQ68: 0.0254820269 | AR68: 0.08299585348
A69: Belgrave House, Station Way | B69: N/A | E69: 0.152691195 | F69: 0.15 | G69: 0 | H69: 0 | I69: 0 | J69: 0 | K69: 0 | L69: 0 | M69: 0 | N69: 0 | O69: 0 | P69: 0 | Q69: 0 | R69: 1 | S69: 0 | T69: 0 | U69: 0 | V69: 0 | W69: 0 | X69: 0 | Y69: 0 | Z69: 0 | AA69: 0 | AB69: 0 | AC69: 0 | AD69: 0 | AE69: 0 | AF69: 0 | AG69: 0 | AH69: 0 | AI69: 0 | AJ69: 0 | AK69: 0 | AL69: 0 | AM69: 0 | AN69: 0 | AO69: 0 | AP69: 0 | AQ69: 0 | AR69: 0
A70: Pacific House, Hazelwick Avenue | B70: N/A | E70: 0.1911436214 | F70: 0.19 | G70: 0 | H70: 0 | I70: 0 | J70: 4.688725992e-06 | K70: 0 | L70: 0 | M70: 0 | N70: 0.008972317922 | O70: 0.01 | P70: 0.05263157895 | Q70: 0.05263157895 | R70: 0.9473684211 | S70: 0 | T70: 0.06771765861 | U70: 0.3542763192 | V70: 0 | W70: 0.001158520001 | X70: 0.006060992214 | Y70: 0.0015327 | Z70: 0.008018577807 | AA70: 0.008018577807 | AB70: 0.02427678475 | AC70: 0.1270080821 | AD70: 0.1270080821 | AE70: 0 | AF70: 0 | AG70: 0 | AH70: 0 | AI70: 0.0001811382014 | AJ70: 0.000947654963 | AK70: 0.001150917653 | AL70: 0.006021219252 | AM70: 0.004202668503 | AN70: 0.02198696704 | AO70: 0.006656914499 | AP70: 0.0348267677 | AQ70: 0.01131941175 | AR70: 0.05921940616
A71: Energy House, Hazelwick Avenue | B71: N/A | E71: 0.4328681053 | F71: 0.43 | G71: 0.0005270311655 | H71: 0 | I71: 0 | J71: 0.109028176 | K71: 0.11 | L71: 0.2558139535 | M71: 0.2558139535 | N71: 0.1715878134 | O71: 0.17 | P71: 0.3953488372 | Q71: 0.1395348837 | R71: 0.6046511628 | S71: 0 | T71: 0.4053136663 | U71: 0.9363444924 | V71: 0 | W71: 0 | X71: 0 | Y71: 0.0001250048626 | Z71: 0.0002887827979 | AA71: 0.0002887827979 | AB71: 0.09976249025 | AC71: 0.2304685631 | AD71: 0.2304685631 | AE71: 0 | AF71: 0 | AG71: 0 | AH71: 0 | AI71: 0.1227716604 | AJ71: 0.2836237157 | AK71: 0.1394889057 | AL71: 0.3222434364 | AM71: 0.1472494477 | AN71: 0.3401716272 | AO71: 0.01105037886 | AP71: 0.02552828154 | AQ71: 0.02954714969 | AR71: 0.06825901316
A72: Land at Gales Place and West Way | B72: N/A | E72: 0.7774915411 | F72: 0.78 | G72: 0 | H72: 0 | I72: 0 | J72: 0 | K72: 0 | L72: 0 | M72: 0 | N72: 0 | O72: 0 | P72: 0 | Q72: 0 | R72: 1 | S72: 0 | T72: 0 | U72: 0 | V72: 0 | W72: 0 | X72: 0 | Y72: 0.00015209 | Z72: 0.0001956162761 | AA72: 0.0001956162761 | AB72: 0.03428805554 | AC72: 0.04410087277 | AD72: 0.04410087277 | AE72: 0 | AF72: 0 | AG72: 0 | AH72: 0 | AI72: 0 | AJ72: 0 | AK72: 0 | AL72: 0 | AM72: 0 | AN72: 0 | AO72: 0.01508845725 | AP72: 0.01940658702 | AQ72: 0.02025074725 | AR72: 0.02604626054
A73: Furnace Green Community Centre | B73: N/A | E73: 0.2565935 | F73: 0.26 | G73: 0 | H73: 0 | I73: 0 | J73: 0 | K73: 0 | L73: 0 | M73: 0 | N73: 0 | O73: 0 | P73: 0 | Q73: 0 | R73: 1 | S73: 0 | T73: 0 | U73: 0 | V73: 0 | W73: 0 | X73: 0 | Y73: 0 | Z73: 0 | AA73: 0 | AB73: 0.00481452 | AC73: 0.01876321886 | AD73: 0.01876321886 | AE73: 0 | AF73: 0 | AG73: 0 | AH73: 0 | AI73: 0 | AJ73: 0 | AK73: 0 | AL73: 0 | AM73: 0 | AN73: 0 | AO73: 2.214522794e-05 | AP73: 8.630471132e-05 | AQ73: 2.214522794e-05 | AR73: 8.630471132e-05
A74: Land at Peterborough Road | B74: N/A | E74: 0.2609737058 | F74: 0.26 | G74: 0 | H74: 0 | I74: 0 | J74: 0 | K74: 0 | L74: 0 | M74: 0 | N74: 0 | O74: 0 | P74: 0 | Q74: 0 | R74: 1 | S74: 0 | T74: 0 | U74: 0 | V74: 0 | W74: 0 | X74: 0 | Y74: 0 | Z74: 0 | AA74: 0 | AB74: 0 | AC74: 0 | AD74: 0 | AE74: 0 | AF74: 0 | AG74: 0 | AH74: 0 | AI74: 0 | AJ74: 0 | AK74: 0 | AL74: 0 | AM74: 0 | AN74: 0 | AO74: 0 | AP74: 0 | AQ74: 0 | AR74: 0
A75: Former Age Concern Building, Shackleton Road | B75: N/A | E75: 0.1479786036 | F75: 0.15 | G75: 0 | H75: 0 | I75: 0 | J75: 0.003073577976 | K75: 0 | L75: 0 | M75: 0 | N75: 0.08607635798 | O75: 0.09 | P75: 0.6 | Q75: 0.6 | R75: 0.4 | S75: 0 | T75: 0 | U75: 0 | V75: 0 | W75: 0.05159292123 | X75: 0.3486512238 | Y75: 0.09362258063 | Z75: 0.6326764707 | AA75: 0.6326764707 | AB75: 0.1121419097 | AC75: 0.7578251655 | AD75: 0.7578251655 | AE75: 0 | AF75: 0 | AG75: 0 | AH75: 0 | AI75: 0.03600276312 | AJ75: 0.2432970866 | AK75: 0.05398170418 | AL75: 0.3647939829 | AM75: 0.08006384878 | AN75: 0.5410501711 | AO75: 0.1025515577 | AP75: 0.6930161204 | AQ75: 0.1097269893 | AR75: 0.7415057759

Sheet Sites (hidden)
C1: SHLAA ID
A2: Crawley | B2: Gatwick Airport
B3: Town Centre
B4: Area Action Plan
B5: Area Action Plan
B6: Land at Jersey Farm (Site A)
B7: Space Gatwick, Faraday Road
B8: Southways, London Road
B9: Gatwick Park (Site G1), Gatwick Road
B10: Gatwick Park (Site G2), BCL House, Gatwick Road
B11: Manor Royal
B12: 2 - 12 Friston Walk
B13: Parkside Car Park
B14: Crawley College Car Park
B15: Zurich House
B16: 138 - 144 London Road
B17: 8 - 9 Queens Square
B18: 15 - 29 The Broadway
B19: Former EDF Building
B20: County Buildings
B21: Shaw House
B22: Oak Tree Filling Station, 114 London Road
B23: Oakhurst Grange
B24: Rear Gardens, Snell Hatch/Ifield Road
B25: Sutherland House (Eastern Section)
B26: Land to the southeast of Heathy Farm
B27: 21, 25, 27 & 29 Tushmore Lane
B28: Brittingham House
B29: Crawley College
B30: Telford Place
B31: Former TSB Site
B32: 7 - 13 The Broadway & 1 - 3 Queens Square
B33: Breezehurst Drive Playing Fields
B34: Land to the southeast of Heathy Farm
B35: Land Adjacent to Desmond Anderson
B36: Henty Close
B37: 257 - 259 Ifield Road
B38: Tinsley Lane Playing Fields
B39: Stoner House
B40: 1 - 7 Pegler Way
B41: Longley Building
B42: Land North of the Boulevard
B43: Crawley Station and Car Parks
B44: Ocean House
B45: Land East of Balcombe Road/Street Hill
B46: Rear Gardens, Dingle Close/Ifield Road
B47: The Imperial
B48: 9 Woolborough Road
B49: Ambulance Station
B50: Fire Station
B51: Goffs Park Depot
B52: Forge Wood
B53: St. Catherine's Hospice
B54: Rushetts Road Play Area
B55: Land S/O and R/O 24 Brighton Road
B56: Moka
B57: Kilnmead Car Park
B58: The Old Vicarage, Church Walk (Cross Keys)
B59: Harwood. Blaxley and Forest Way, Balcombe Road
B60: 96 – 102 North Road
B61: 46 – 48 Goffs Park Road
B62: 40 Springfield Road
B63: 34-38 & 40, the Broadway
B64: 48 the Broadway
B65: Land R/O the George Hotel
B66: Belgrave House, Station Way
B67: Pacific House, Hazelwick Avenue
B68: Energy House, Hazelwick Avenue
B69: Land at Gales Place and West Way
B70: Furnace Green Community Centre
B71: Land at Peterborough Road
B72: Former Age Concern Building, Shackleton Road
A73: Horsham | B73: Land West of Bewbush | C73: SA289
B74: Land West of Kilnwood Vale | C74: SA291
B75: Land off Rusper Road, Ifield | C75: SA468
